Workbook

Sheet Instructions

Sheet Section 1
A1: Version Release Date: 05/03/2016 | B1: 2
A2: SECTION 1: COVER PAGE
A3: 89
A4: (1) Grant Number: | B4: 55IH5312690
A6: (2) Recipient Program Year: | B6: 10/1 - 9/30
A8: (3) Federal Fiscal Year: | B8: 2017
A10: (4) Initial Plan (Complete this Section then proceed to Section 2)
A12: (5) Amended Plan (Complete this Section, Section 8 if applicable, and Section 16)
A14: (6) Annual Performance Report (Complete items 27-30 and proceed to Section 3)
A16: (7) Tribe
A18: (8) TDHE
A20: (9) Name of Recipient:
A21: Quileute Housing Authority
A22: (10) Contact Person:
A23: Jacqueline Peterson
A24: (11) Telephone Number with Area Code:
A25: 360-374-9719
A26: (12) Mailing Address:
A27: PO Box 159
A30: (13) City: | B30: (14) State: | C30: (15) Zip Code:
A31: La Push | B31: WA | C31: 98350
A32: (16) Fax Number with Area Code (if available):
A33: 360-374-9117
A34: (17) Email Address (if available):
A35: jacqueline.peterson@quileutenation.org
A36: (18) If TDHE, List Tribes Below:
A38: (19) Tax Identification Number: | C38: 911148967
A39: (20) DUNS Number: | C39: 045771722
A40: (21) CCR/SAM Expiration Date: | C40: 2017-06-16
A41: (22) IHBG Fiscal Year Formula Amount: | C41: 649322
A42: (23) Name of Authorized IHP Submitter: | C42: Jacqueline Peterson
A43: (24) Title of Authorized IHP Submitter: | C43: Executive Director
A44: (25) Signature of Authorized IHP Submitter: | C44: Jacqueline Peterson
A45: (26) IHP Submission Date: | C45: 2016-07-14
A46: (27) Name of Authorized APR Submitter:
A47: (28) Title of Authorized APR Submitter:
A48: (29) Signature of Authorized APR Submitter:
A49: (30) APR Submission Date:
A53: Certification: The information contained in this document is accurate and reflects the activities actually planned or accomplished during the program year. Activities planned and accomplished are eligible under applicable statutes and regulations.
A55: Warning: If you knowingly make a false statement on this form, you may be subject to civil or criminal penalties under Section 1001 of Title 18 of the United States Code. In addition, any person who knowingly and materially violates any required disclosure of information, including intentional disclosure, is subject to a civil money penalty not to exceed $10,000 for each violation.

Sheet Section 2
A1: ONE YEAR PLAN & ANNUAL PERFORMANCE REPORT
A3: SECTION 2: HOUSING NEEDS
A4: NAHASDA § 102(b)(2)(B)
A6: (1) Type of Need: Check the appropriate box(es) below to describe the estimated types of housing needs and the need for other assistance for low-income Indian families (column B) and all Indian families (column C) inside and outside the jurisdiction.
B8: Check All That Apply
A9: (A) | B9: (B) | C9: (C)
A10: Type of Need
B11: Low-Income Indian Families | C11: All Indian Families
A12: (1) Overcrowded Households
A13: (2) Renters Who Wish to Become Owners
A14: (3) Substandard Units Needing Rehabilitation
A15: (4) Homeless Households
A16: (5) Households Needing Affordable Rental Units
A17: (6) College Student Housing
A18: (7) Disabled Households Needing Accessibility
A19: (8) Units Needing Energy Efficiency Upgrades
A20: (9) Infrastructure to Support Housing
A21: (10) Other (specify below)
A24: (2) Other Needs. (Describe the “Other” needs below. Note: this text is optional for all needs except “Other.”):
A25: a
A27: (3) Planned Program Benefits. (Describe below how your planned programs and activities will address the needs of low income families identified above. Also describe how your planned programs will address the various types of housing assistance needs. NAHASDA § 102(b)(2)(B)):
A28: a
A30: (4) Geographic Distribution. (Describe below how the assistance will be distributed throughout the geographic area and how this geographic distribution is consistent with the needs of low income families. NAHASDA § 102(b)(2)(B)(i)):
A31: a

Sheet Section 3 (1)
B1: Units
A2: SECTION 3: PROGRAM DESCRIPTIONS
A3: [102(b)(2)(A)], [233(a)], [235(c)], [404(b)], 24 CFR §1000.512(b)(2) and (3)
A5: Planning and Reporting Program Year Activities
A9: Eligible Activity May Include (citations below all reference sections in NAHASDA):
A10: Eligible Activity | B10: Output Measure | C10: Output Completion
A11: (1) Modernization of 1937 Act Housing [202(1)] | B11: Units | C11: All work completed and unit passed final inspection
A12: (2) Operation of 1937 Act Housing [202(1)] | B12: Units | C12: Number of units in inventory at Program Year End (PYE)
A13: (3) Acquisition of Rental Housing [202(2)] | B13: Units | C13: When recipient takes title to the unit
A14: (4) Construction of Rental Housing [202(2)] | B14: Units | C14: All work completed and unit passed final inspection
A15: (5) Rehabilitation of Rental Housing [202(2)] | B15: Units | C15: All work completed and unit passed final inspection
A16: (6) Acquisition of Land for Rental Housing Development [202(2)] | B16: Acres | C16: When recipient takes title to the land
A17: (7) Development of Emergency Shelters [202(2)] | B17: Households | C17: Number of households served at any one time, based on capacity of the shelter
A18: (8) Conversion of Other Structures to Affordable Housing [202(2)] | B18: Units | C18: All work completed and unit passed final inspection
A19: (9) Other Rental Housing Development [202(2)] | B19: Units | C19: All work completed and unit passed final inspection
A20: (10) Acquisition of Land for Homebuyer Unit Development [202(2)] | B20: Acres | C20: When recipient takes title to the land
A21: (11) New Construction of Homebuyer Units [202(2)] | B21: Units | C21: All work completed and unit passed final inspection
A22: (12) Acquisition of Homebuyer Units [202(2)] | B22: Units | C22: When recipient takes title to the unit
A23: (13) Down Payment/Closing Cost Assistance [202(2)] | B23: Units | C23: When binding commitment signed
A24: (14) Lending Subsidies for Homebuyers (Loan) [202(2)] | B24: Units | C24: When binding commitment signed
A25: (15) Other Homebuyer Assistance Activities [202(2)] | B25: Units | C25: When binding commitment signed
A26: (16) Rehabilitation Assistance to Existing Homeowners [202(2)] | B26: Units | C26: All work completed and unit passed final inspection
A27: (17) Tenant Based Rental Assistance [202(3)] | B27: Households | C27: Count each household once per year
A28: (18) Other Housing Service [202(3)] | B28: Households | C28: Count each household once per year
A29: (19) Housing Management Services [202(4)] | B29: Households | C29: Count each household once per year
A30: (20) Operation and Maintenance of NAHASDA-Assisted Units [202(4)] | B30: Units | C30: Number of units in inventory at PYE
A31: (21) Crime Prevention and Safety [202(5)] | B31: Dollars | C31: Dollars spent (report in Uses of Funding table only)
A32: (22) Model Activities [202(6)] | B32: Dollars | C32: Dollars spent (report in Uses of Funding table only)
A33: (23) Self-Determination Program [231-235]
A34: Acquisition | B34: Units | C34: When recipient takes title to the unit
A35: Construction | B35: Units | C35: All work completed and unit passed final inspection
A36: Rehabilitation | B36: Units | C36: All work completed and unit passed final inspection
A37: Infrastructure | B37: Dollars | C37: Dollars spent (report in Uses of Funding table only)
A38: (24) Infrastructure to Support Housing [202(2)] | B38: Dollars | C38: Dollars spent (report in Uses of Funding table only)
A39: (25) Reserve Accounts [202(9)] | B39: N/A | C39: N/A
A41: Outcome May Include:
A42: (1) Reduce over-crowding | C42: (7) Create new affordable rental units
A43: (2) Assist renters to become homeowners | C43: (8) Assist affordable housing for college students
A44: (3) Improve quality of substandard units | C44: (9) Provide accessibility for disabled/elderly persons
A45: (4) Improve quality of existing infrastructure | C45: (10) Improve energy efficiency
A46: (5) Address homelessness | C46: (11) Reduction in crime reports
A47: (6) Assist affordable housing for low income households | C47: (12) Other – must provide description in boxes 1.4 (IHP) and 1.5 (APR) below | AA47: 1
A49: IHP: PLANNED PROGRAM YEAR ACTIVITIES (NAHASDA § 102(b)(2)(A))
A50: For each planned activity, complete all the non-shaded sections below. It is recommended that for each program name you assign a unique identifier to help distinguish individual programs. This unique number can be any number of your choosing, but it should be simple and clear so that you and HUD can track tasks and results under the program and collect appropriate file documentation tied to this program.
A51: § One way to number your programs is chronologically. For example, you could number your programs 2011-1,
A52: 2011-2, 2011-3 etc.
A53: § Or, you may wish to number the programs based on type. For example rental 1, rental 2, homebuyer1,
A54: homebuyer 2 etc. This type of numbering system might be appropriate if you have many programs
A55: that last over several years.
A56: § Finally, you may wish to use an outline style of numbering. For example, all programs under your first
A57: eligible activity would start with the number 1 and then be consecutively numbered as 1.1, 1.2, 1.3 etc.
A58: The programs under the second eligible activity would be numbered as 2.1, 2.2, 2.3 etc.
A60: APR: REPORTING ON PROGRAM YEAR PROGRESS (NAHASDA § 404(b))
A62: Complete the shaded section of text below to describe your completed program tasks and actual results. Only report on activities completed during the 12-month program year. Financial data should be presented using the same basis of accounting as the Schedule of Expenditures of Federal Awards (SEFA) in the annual audit. For unit accomplishments, only count units when the unit was completed and occupied during the year. For households, only count the household if it received the assistance during the previous 12-month program year.
A64: 1.1. Program Name and Unique Identifier:
A65: 1.2. Program Description (This should be the description of the planned program.):
A66: a
A67: 1.3 Eligible Activity Number (Select one activity from the Eligible Activity list. For any activity involving housing units as the output measure (excluding operations and maintenance), do not combine homeownership and rental housing in one activity, so that when housing units are reported in the APR they are correctly identified as homeownership or rental.): | D67: 1
A68: 1.4 Intended Outcome Number (Select one outcome from the Outcome list. Each program can have only one outcome. If more than one outcome applies, create a separate program for each outcome.): | D68: 3
A69: Describe Other Intended Outcome (Only if you selected "Other" above):
A71: 1.5 Actual Outcome Number (In the APR identify the actual outcome from the Outcome list.): | D71: 3
A72: Describe Other Actual Outcome (Only if you selected "Other" above.):
A74: 1.6 Who Will Be Assisted (Describe the types of households that will be assisted under the program. Please note: assistance made available to families whose incomes fall within 80 to 100 percent of the median must be included as a separate program within this section.):
A75: a
A76: 1.7. Types and Level of Assistance (Describe the types and the level of assistance that will be provided to each household, as applicable.):
A77: a
A78: 1.8. APR: Describe the accomplishments for the APR in the 12-month program year. In accordance with 24 CFR § 1000.512(b)(3), provide an analysis and explanation of cost overruns or high unit costs.
A79: a
A80: 1.9: Planned and Actual Outputs for 12-Month Program Year
A81: Planned Number of Units to be Completed in Year Under this Program | B81: Planned Number of Households To Be Served in Year Under this Program | C81: Planned Number of Acres To Be Purchased in Year Under this Program
A82: 5
A83: APR: Actual Number of Units Completed in Program Year | B83: APR: Actual Number of Households Served in Program Year | C83: APR: Actual Number of Acres Purchased in Program Year
A84: 0
A85: 1.10: APR: If the program is behind schedule, explain why. (24 CFR § 1000.512(b)(2))
A86: a

Sheet Section 3 (hidden)
N1: (1) Modernization of 1937 Act Housing [202(1)] | O1: (1) Reduce over-crowding
A2: SECTION 3: PROGRAM DESCRIPTIONS | M2: 1 | N2: (2) Operation of 1937 Act Housing [202(1)] | O2: (2) Assist renters to become homeowners
A3: [102(b)(2)(A)], [233(a)], [235(c)], [404(b)], 24 CFR §1000.512(b)(2) and (3) | M3: 2 | N3: (3) Acquisition of Rental Housing [202(2)] | O3: (3) Improve quality of substandard units
M4: 3 | N4: (4) Construction of Rental Housing [202(2)] | O4: (4) Improve quality of existing infrastructure
A5: Planning and Reporting Program Year Activities | M5: 4 | N5: (5) Rehabilitation of Rental Housing [202(2)] | O5: (5) Address homelessness
N6: (6) Acquisition of Land for Rental Housing Development [202(2)] | O6: (6) Assist affordable housing for low income households
N7: (7) Development of Emergency Shelters [202(2)] | O7: (7) Create new affordable rental units
M8: 6 | N8: (8) Conversion of Other Structures to Affordable Housing [202(2)] | O8: (8) Assist affordable housing for college students
A9: Eligible Activity May Include (citations below all reference sections in NAHASDA): | M9: 8 | N9: (9) Other Rental Housing Development [202(2)] | O9: (9) Provide accessibility for disabled/elderly persons
A10: Eligible Activity | B10: Output Measure | C10: Output Completion | N10: (10) Acquisition of Land for Homebuyer Unit Development [202(2)] | O10: (10) Improve energy efficiency
A11: (1) Modernization of 1937 Act Housing [202(1)] | B11: Units | C11: All work completed and unit passed final inspection | N11: (11) New Construction of Homebuyer Units [202(2)] | O11: (11) Reduction in crime reports
A12: (2) Operation of 1937 Act Housing [202(1)] | B12: Units | C12: Number of units in inventory at Program Year End (PYE) | N12: (12) Acquisition of Homebuyer Units [202(2)] | O12: (12) Other – must provide description in boxes 1.4 (IHP) and 1.5 (APR) below
A13: (3) Acquisition of Rental Housing [202(2)] | B13: Units | C13: When recipient takes title to the unit | N13: (13) Down Payment/Closing Cost Assistance [202(2)]
A14: (4) Construction of Rental Housing [202(2)] | B14: Units | C14: All work completed and unit passed final inspection | N14: (14) Lending Subsidies for Homebuyers (Loan) [202(2)]
A15: (5) Rehabilitation of Rental Housing [202(2)] | B15: Units | C15: All work completed and unit passed final inspection | N15: (15) Other Homebuyer Assistance Activities [202(2)]
A16: (6) Acquisition of Land for Rental Housing Development [202(2)] | B16: Acres | C16: When recipient takes title to the land | N16: (16) Rehabilitation Assistance to Existing Homeowners [202(2)]
A17: (7) Development of Emergency Shelters [202(2)] | B17: Households | C17: Number of households served at any one time, based on capacity of the shelter | N17: (17) Tenant Based Rental Assistance [202(3)]
A18: (8) Conversion of Other Structures to Affordable Housing [202(2)] | B18: Units | C18: All work completed and unit passed final inspection | N18: (18) Other Housing Services [202(3)]
A19: (9) Other Rental Housing Development [202(2)] | B19: Units | C19: All work completed and unit passed final inspection | N19: (19) Housing Management Services [202(4)]
A20: (10) Acquisition of Land for Homebuyer Unit Development [202(2)] | B20: Acres | C20: When recipient takes title to the land | N20: (20) Operation and Maintenance of NAHASDA-Assisted Units [202(4)]
A21: (11) New Construction of Homebuyer Units [202(2)] | B21: Units | C21: All work completed and unit passed final inspection | N21: (21) Crime Prevention and Safety [202(5)]
A22: (12) Acquisition of Homebuyer Units [202(2)] | B22: Units | C22: When recipient takes title to the unit | N22: (22) Model Activities [202(6)]
A23: (13) Down Payment/Closing Cost Assistance [202(2)] | B23: Units | C23: When binding commitment signed | N23: (23) Self-Determination Program [231-235]
A24: (14) Lending Subsidies for Homebuyers (Loan) [202(2)] | B24: Units | C24: When binding commitment signed | N24: (24) Infrastructure to Support Housing [202(2)]
A25: (15) Other Homebuyer Assistance Activities [202(2)] | B25: Units | C25: When binding commitment signed | N25: (25) Reserve Accounts [202(9)]
A26: (16) Rehabilitation Assistance to Existing Homeowners [202(2)] | B26: Units | C26: All work completed and unit passed final inspection
A27: (17) Tenant Based Rental Assistance [202(3)] | B27: Households | C27: Count each household once per year
A28: (18) Other Housing Service [202(3)] | B28: Households | C28: Count each household once per year
A29: (19) Housing Management Services [202(4)] | B29: Households | C29: Count each household once per year
A30: (20) Operation and Maintenance of NAHASDA-Assisted Units [202(4)] | B30: Units | C30: Number of units in inventory at PYE
A31: (21) Crime Prevention and Safety [202(5)] | B31: Dollars | C31: Dollars spent (report in Uses of Funding Table only)
A32: (22) Model Activities [202(6)] | B32: Dollars | C32: Dollars spent (report in Uses of Funding Table only)
A33: (23) Self-Determination Program [231-235]
A34: Acquisition | B34: Units | C34: When recipient takes title to the unit
A35: Construction | B35: Units | C35: All work completed and unit passed final inspection
A36: Rehabilitation | B36: Units | C36: All work completed and unit passed final inspection
A37: Infrastructure | B37: Dollars | C37: Dollars spent (report in Uses of Funding Table only)
A38: (24) Infrastructure to Support Housing [202(2)] | B38: Dollars | C38: Dollars spent (report in Uses of Funding Table only)
A39: (25) Reserve Accounts [202(9)] | B39: N/A | C39: N/A
A41: Outcome May Include:
A42: (1) Reduce over-crowding | C42: (7) Create new affordable rental units
A43: (2) Assist renters to become homeowners | C43: (8) Assist affordable housing for college students
A44: (3) Improve quality of substandard units | C44: (9) Provide accessibility for disabled/elderly persons
A45: (4) Improve quality of existing infrastructure | C45: (10) Improve energy efficiency
A46: (5) Address homelessness | C46: (11) Reduction in crime reports
A47: (6) Assist affordable housing for low income households | C47: (12) Other – must provide description in boxes 1.4 (IHP) and 1.5 (APR) below | AA47: 7
A49: IHP: PLANNED PROGRAM YEAR ACTIVITIES (NAHASDA § 102(b)(2)(A))
A50: For each planned activity, complete all the non-shaded sections below. It is recommended that for each program name you assign a unique identifier to help distinguish individual programs. This unique number can be any number of your choosing, but it should be simple and clear so that you and HUD can track tasks and results under the program and collect appropriate file documentation tied to this program.
A51: § One way to number your programs is chronologically. For example, you could number your programs 2011-1,
A52: 2011-2, 2011-3 etc.
A53: § Or, you may wish to number the programs based on type. For example rental 1, rental 2, homebuyer1,
A54: homebuyer 2 etc. This type of numbering system might be appropriate if you have many programs
A55: that last over several years.
A56: § Finally, you may wish to use an outline style of numbering. For example, all programs under your first
A57: eligible activity would start with the number 1 and then be consecutively numbered as 1.1, 1.2, 1.3 etc.
A58: The programs under the second eligible activity would be numbered as 2.1, 2.2, 2.3 etc.
A60: APR: REPORTING ON PROGRAM YEAR PROGRESS (NAHASDA § 404(b))
A62: Complete the shaded section of text below to describe your completed program tasks and actual results. Only report on activities completed during the 12-month program year. Financial data should be presented using the same basis of accounting as the Schedule of Expenditures of Federal Awards (SEFA) in the annual audit. For unit accomplishments, only count units when the unit was completed and occupied during the year. For households, only count the household if it received the assistance during the previous 12-month program year.
A64: 1.1. Program Name and Unique Identifier:
A65: 1.2. Program Description (This should be the description of the planned program.):
A67: 1.3 Eligible Activity Number (Select one activity from the Eligible Activity list. For any activity involving housing units as the output measure (excluding operations and maintenance), do not combine homeownership and rental housing in one activity, so that when housing units are reported in the APR they are correctly identified as homeownership or rental.):
A68: 1.4 Intended Outcome Number (Select one outcome from the Outcome list. Each program can have only one outcome. If more than one outcome applies, create a separate program for each outcome.):
A69: Describe Other Intended Outcome (Only if you selected "Other" above.):
A71: 1.5 Actual Outcome Number (In the APR identify the actual outcome from the Outcome list.):
A72: Describe Other Actual Outcome (Only if you selected "Other" above.):
A74: 1.6 Who Will Be Assisted (Describe the types of households that will be assisted under the program. Please note: assistance made available to families whose incomes fall within 80 to 100 percent of the median must be included as a separate program within this section.):
A76: 1.7. Types and Level of Assistance (Describe the types and the level of assistance that will be provided to each household, as applicable.):
A78: 1.8. APR: Describe the accomplishments for the APR in the 12-month program year.
A80: 1.9: Planned and Actual Outputs for 12-Month Program Year
A81: Planned Number of Units to be Completed in Year Under this Program | B81: Planned Number of Households To Be Served in Year Under this Program | C81: Planned Number of Acres To Be Purchased in Year Under this Program
A83: APR: Actual Number of Units Completed in Program Year | B83: APR: Actual Number of Households Served in Program Year | C83: APR: Actual Number of Acres Purchased in Program Year
A85: 1.10: APR: If the program is behind schedule, explain why. (24 CFR § 1000.512(b)(2))

Sheet Section 3 (2)
B1: Units | N1: (1) Modernization of 1937 Act Housing [202(1)] | O1: (1) Reduce over-crowding
A2: SECTION 3: PROGRAM DESCRIPTIONS | M2: 1 | N2: (2) Operation of 1937 Act Housing [202(1)] | O2: (2) Assist renters to become homeowners
A3: [102(b)(2)(A)], [233(a)], [235(c)], [404(b)], 24 CFR §1000.512(b)(2) and (3) | M3: 2 | N3: (3) Acquisition of Rental Housing [202(2)] | O3: (3) Improve quality of substandard units
M4: 3 | N4: (4) Construction of Rental Housing [202(2)] | O4: (4) Improve quality of existing infrastructure
A5: Planning and Reporting Program Year Activities | M5: 4 | N5: (5) Rehabilitation of Rental Housing [202(2)] | O5: (5) Address homelessness
N6: (6) Acquisition of Land for Rental Housing Development [202(2)] | O6: (6) Assist affordable housing for low income households
N7: (7) Development of Emergency Shelters [202(2)] | O7: (7) Create new affordable rental units
M8: 6 | N8: (8) Conversion of Other Structures to Affordable Housing [202(2)] | O8: (8) Assist affordable housing for college students
A9: Eligible Activity May Include (citations below all reference sections in NAHASDA): | M9: 8 | N9: (9) Other Rental Housing Development [202(2)] | O9: (9) Provide accessibility for disabled/elderly persons
A10: Eligible Activity | B10: Output Measure | C10: Output Completion | N10: (10) Acquisition of Land for Homebuyer Unit Development [202(2)] | O10: (10) Improve energy efficiency
A11: (1) Modernization of 1937 Act Housing [202(1)] | B11: Units | C11: All work completed and unit passed final inspection | N11: (11) New Construction of Homebuyer Units [202(2)] | O11: (11) Reduction in crime reports
A12: (2) Operation of 1937 Act Housing [202(1)] | B12: Units | C12: Number of units in inventory at Program Year End (PYE) | N12: (12) Acquisition of Homebuyer Units [202(2)] | O12: (12) Other – must provide description in boxes 1.4 (IHP) and 1.5 (APR) below
A13: (3) Acquisition of Rental Housing [202(2)] | B13: Units | C13: When recipient takes title to the unit | N13: (13) Down Payment/Closing Cost Assistance [202(2)]
A14: (4) Construction of Rental Housing [202(2)] | B14: Units | C14: All work completed and unit passed final inspection | N14: (14) Lending Subsidies for Homebuyers (Loan) [202(2)]
A15: (5) Rehabilitation of Rental Housing [202(2)] | B15: Units | C15: All work completed and unit passed final inspection | N15: (15) Other Homebuyer Assistance Activities [202(2)]
A16: (6) Acquisition of Land for Rental Housing Development [202(2)] | B16: Acres | C16: When recipient takes title to the land | N16: (16) Rehabilitation Assistance to Existing Homeowners [202(2)]
A17: (7) Development of Emergency Shelters [202(2)] | B17: Households | C17: Number of households served at any one time, based on capacity of the shelter | N17: (17) Tenant Based Rental Assistance [202(3)]
A18: (8) Conversion of Other Structures to Affordable Housing [202(2)] | B18: Units | C18: All work completed and unit passed final inspection | N18: (18) Other Housing Services [202(3)]
A19: (9) Other Rental Housing Development [202(2)] | B19: Units | C19: All work completed and unit passed final inspection | N19: (19) Housing Management Services [202(4)]
A20: (10) Acquisition of Land for Homebuyer Unit Development [202(2)] | B20: Acres | C20: When recipient takes title to the land | N20: (20) Operation and Maintenance of NAHASDA-Assisted Units [202(4)]
A21: (11) New Construction of Homebuyer Units [202(2)] | B21: Units | C21: All work completed and unit passed final inspection | N21: (21) Crime Prevention and Safety [202(5)]
A22: (12) Acquisition of Homebuyer Units [202(2)] | B22: Units | C22: When recipient takes title to the unit | N22: (22) Model Activities [202(6)]
A23: (13) Down Payment/Closing Cost Assistance [202(2)] | B23: Units | C23: When binding commitment signed | N23: (23) Self-Determination Program [231-235]
A24: (14) Lending Subsidies for Homebuyers (Loan) [202(2)] | B24: Units | C24: When binding commitment signed | N24: (24) Infrastructure to Support Housing [202(2)]
A25: (15) Other Homebuyer Assistance Activities [202(2)] | B25: Units | C25: When binding commitment signed | N25: (25) Reserve Accounts [202(9)]
A26: (16) Rehabilitation Assistance to Existing Homeowners [202(2)] | B26: Units | C26: All work completed and unit passed final inspection
A27: (17) Tenant Based Rental Assistance [202(3)] | B27: Households | C27: Count each household once per year
A28: (18) Other Housing Service [202(3)] | B28: Households | C28: Count each household once per year
A29: (19) Housing Management Services [202(4)] | B29: Households | C29: Count each household once per year
A30: (20) Operation and Maintenance of NAHASDA-Assisted Units [202(4)] | B30: Units | C30: Number of units in inventory at PYE
A31: (21) Crime Prevention and Safety [202(5)] | B31: Dollars | C31: Dollars spent (report in Uses of Funding Table only)
A32: (22) Model Activities [202(6)] | B32: Dollars | C32: Dollars spent (report in Uses of Funding Table only)
A33: (23) Self-Determination Program [231-235]
A34: Acquisition | B34: Units | C34: When recipient takes title to the unit
A35: Construction | B35: Units | C35: All work completed and unit passed final inspection
A36: Rehabilitation | B36: Units | C36: All work completed and unit passed final inspection
A37: Infrastructure | B37: Dollars | C37: Dollars spent (report in Uses of Funding Table only)
A38: (24) Infrastructure to Support Housing [202(2)] | B38: Dollars | C38: Dollars spent (report in Uses of Funding Table only)
A39: (25) Reserve Accounts [202(9)] | B39: N/A | C39: N/A
A41: Outcome May Include:
A42: (1) Reduce over-crowding | C42: (7) Create new affordable rental units
A43: (2) Assist renters to become homeowners | C43: (8) Assist affordable housing for college students
A44: (3) Improve quality of substandard units | C44: (9) Provide accessibility for disabled/elderly persons
A45: (4) Improve quality of existing infrastructure | C45: (10) Improve energy efficiency
A46: (5) Address homelessness | C46: (11) Reduction in crime reports
A47: (6) Assist affordable housing for low income households | C47: (12) Other – must provide description in boxes 1.4 (IHP) and 1.5 (APR) below | AA47: 2
A49: IHP: PLANNED PROGRAM YEAR ACTIVITIES (NAHASDA § 102(b)(2)(A))
A50: For each planned activity, complete all the non-shaded sections below. It is recommended that for each program name you assign a unique identifier to help distinguish individual programs. This unique number can be any number of your choosing, but it should be simple and clear so that you and HUD can track tasks and results under the program and collect appropriate file documentation tied to this program.
A51: § One way to number your programs is chronologically. For example, you could number your programs 2011-1,
A52: 2011-2, 2011-3 etc.
A53: § Or, you may wish to number the programs based on type. For example rental 1, rental 2, homebuyer1,
A54: homebuyer 2 etc. This type of numbering system might be appropriate if you have many programs
A55: that last over several years.
A56: § Finally, you may wish to use an outline style of numbering. For example, all programs under your first
A57: eligible activity would start with the number 1 and then be consecutively numbered as 1.1, 1.2, 1.3 etc.
A58: The programs under the second eligible activity would be numbered as 2.1, 2.2, 2.3 etc.
A60: APR: REPORTING ON PROGRAM YEAR PROGRESS (NAHASDA § 404(b))
A62: Complete the shaded section of text below to describe your completed program tasks and actual results. Only report on activities completed during the 12-month program year. Financial data should be presented using the same basis of accounting as the Schedule of Expenditures of Federal Awards (SEFA) in the annual audit. For unit accomplishments, only count units when the unit was completed and occupied during the year. For households, only count the household if it received the assistance during the previous 12-month program year.
A64: 2.1. Program Name and Unique Identifier:
A65: 2.2. Program Description (This should be the description of the planned program.):
A66: a
A67: 2.3. Eligible Activity Number (Select one activity from the Eligible Activity list. Do not combine homeownership and rental housing in one activity, so that when housing units are reported in the APR they are correctly identified as homeownership or rental.): | D67: 2
A68: 2.4. Intended Outcome Number (Select one outcome from the Outcome list. Each program can have only one outcome. If more than one outcome applies, create a separate program for each outcome.): | D68: 6
A69: Describe Other Intended Outcome (Only if you selected "Other" above.):
A71: 2.5. Actual Outcome Number (In the APR identify the actual outcome from the Outcome list.): | D71: 6
A72: Describe Other Actual Outcome (Only if you selected "Other" above.):
A74: 2.6. Who Will Be Assisted (Describe the types of households that will be assisted under the program. Please note: assistance made available to families whose incomes fall within 80 to 100 percent of the median should be included as a separate program within this section.):
A75: a
A76: 2.7. Types and Level of Assistance (Describe the types and the level of assistance that will be provided to each household, as applicable.):
A77: a
A78: 2.8. APR: Describe the accomplishments for the APR in the 12-month program year.
A79: a
A80: 2.9: Planned and Actual Outputs for 12-Month Program Year
A81: Planned Number of Units to be Completed in Year Under this Program | B81: Planned Number of Households To Be Served in Year Under this Program | C81: Planned Number of Acres To Be Purchased in Year Under this Program
A82: 33
A83: APR: Actual Number of Units Completed in Program Year | B83: APR: Actual Number of Households Served in Program Year | C83: APR: Actual Number of Acres Purchased in Program Year
A84: 33
A85: 2.10: APR: If the program is behind schedule, explain why. (24 CFR § 1000.512(b)(2))
A86: a

Sheet Section 3 (3)
B1: Units | N1: (1) Modernization of 1937 Act Housing [202(1)] | O1: (1) Reduce over-crowding
A2: SECTION 3: PROGRAM DESCRIPTIONS | M2: 1 | N2: (2) Operation of 1937 Act Housing [202(1)] | O2: (2) Assist renters to become homeowners
A3: [102(b)(2)(A)], [233(a)], [235(c)], [404(b)], 24 CFR §1000.512(b)(2) and (3) | M3: 2 | N3: (3) Acquisition of Rental Housing [202(2)] | O3: (3) Improve quality of substandard units
M4: 3 | N4: (4) Construction of Rental Housing [202(2)] | O4: (4) Improve quality of existing infrastructure
A5: Planning and Reporting Program Year Activities | M5: 4 | N5: (5) Rehabilitation of Rental Housing [202(2)] | O5: (5) Address homelessness
N6: (6) Acquisition of Land for Rental Housing Development [202(2)] | O6: (6) Assist affordable housing for low income households
N7: (7) Development of Emergency Shelters [202(2)] | O7: (7) Create new affordable rental units
M8: 6 | N8: (8) Conversion of Other Structures to Affordable Housing [202(2)] | O8: (8) Assist affordable housing for college students
A9: Eligible Activity May Include (citations below all reference sections in NAHASDA): | M9: 8 | N9: (9) Other Rental Housing Development [202(2)] | O9: (9) Provide accessibility for disabled/elderly persons
A10: Eligible Activity | B10: Output Measure | C10: Output Completion | N10: (10) Acquisition of Land for Homebuyer Unit Development [202(2)] | O10: (10) Improve energy efficiency
A11: (1) Modernization of 1937 Act Housing [202(1)] | B11: Units | C11: All work completed and unit passed final inspection | N11: (11) New Construction of Homebuyer Units [202(2)] | O11: (11) Reduction in crime reports
A12: (2) Operation of 1937 Act Housing [202(1)] | B12: Units | C12: Number of units in inventory at Program Year End (PYE) | N12: (12) Acquisition of Homebuyer Units [202(2)] | O12: (12) Other – must provide description in boxes 1.4 (IHP) and 1.5 (APR) below
A13: (3) Acquisition of Rental Housing [202(2)] | B13: Units | C13: When recipient takes title to the unit | N13: (13) Down Payment/Closing Cost Assistance [202(2)]
A14: (4) Construction of Rental Housing [202(2)] | B14: Units | C14: All work completed and unit passed final inspection | N14: (14) Lending Subsidies for Homebuyers (Loan) [202(2)]
A15: (5) Rehabilitation of Rental Housing [202(2)] | B15: Units | C15: All work completed and unit passed final inspection | N15: (15) Other Homebuyer Assistance Activities [202(2)]
A16: (6) Acquisition of Land for Rental Housing Development [202(2)] | B16: Acres | C16: When recipient takes title to the land | N16: (16) Rehabilitation Assistance to Existing Homeowners [202(2)]
A17: (7) Development of Emergency Shelters [202(2)] | B17: Households | C17: Number of households served at any one time, based on capacity of the shelter | N17: (17) Tenant Based Rental Assistance [202(3)]
A18: (8) Conversion of Other Structures to Affordable Housing [202(2)] | B18: Units | C18: All work completed and unit passed final inspection | N18: (18) Other Housing Services [202(3)]
A19: (9) Other Rental Housing Development [202(2)] | B19: Units | C19: All work completed and unit passed final inspection | N19: (19) Housing Management Services [202(4)]
A20: (10) Acquisition of Land for Homebuyer Unit Development [202(2)] | B20: Acres | C20: When recipient takes title to the land | N20: (20) Operation and Maintenance of NAHASDA-Assisted Units [202(4)]
A21: (11) New Construction of Homebuyer Units [202(2)] | B21: Units | C21: All work completed and unit passed final inspection | N21: (21) Crime Prevention and Safety [202(5)]
A22: (12) Acquisition of Homebuyer Units [202(2)] | B22: Units | C22: When recipient takes title to the unit | N22: (22) Model Activities [202(6)]
A23: (13) Down Payment/Closing Cost Assistance [202(2)] | B23: Units | C23: When binding commitment signed | N23: (23) Self-Determination Program [231-235]
A24: (14) Lending Subsidies for Homebuyers (Loan) [202(2)] | B24: Units | C24: When binding commitment signed | N24: (24) Infrastructure to Support Housing [202(2)]
A25: (15) Other Homebuyer Assistance Activities [202(2)] | B25: Units | C25: When binding commitment signed | N25: (25) Reserve Accounts [202(9)]
A26: (16) Rehabilitation Assistance to Existing Homeowners [202(2)] | B26: Units | C26: All work completed and unit passed final inspection
A27: (17) Tenant Based Rental Assistance [202(3)] | B27: Households | C27: Count each household once per year
A28: (18) Other Housing Service [202(3)] | B28: Households | C28: Count each household once per year
A29: (19) Housing Management Services [202(4)] | B29: Households | C29: Count each household once per year
A30: (20) Operation and Maintenance of NAHASDA-Assisted Units [202(4)] | B30: Units | C30: Number of units in inventory at PYE
A31: (21) Crime Prevention and Safety [202(5)] | B31: Dollars | C31: Dollars spent (report in Uses of Funding Table only)
A32: (22) Model Activities [202(6)] | B32: Dollars | C32: Dollars spent (report in Uses of Funding Table only)
A33: (23) Self-Determination Program [231-235]
A34: Acquisition | B34: Units | C34: When recipient takes title to the unit
A35: Construction | B35: Units | C35: All work completed and unit passed final inspection
A36: Rehabilitation | B36: Units | C36: All work completed and unit passed final inspection
A37: Infrastructure | B37: Dollars | C37: Dollars spent (report in Uses of Funding Table only)
A38: (24) Infrastructure to Support Housing [202(2)] | B38: Dollars | C38: Dollars spent (report in Uses of Funding Table only)
A39: (25) Reserve Accounts [202(9)] | B39: N/A | C39: N/A
A41: Outcome May Include:
A42: (1) Reduce over-crowding | C42: (7) Create new affordable rental units
A43: (2) Assist renters to become homeowners | C43: (8) Assist affordable housing for college students
A44: (3) Improve quality of substandard units | C44: (9) Provide accessibility for disabled/elderly persons
A45: (4) Improve quality of existing infrastructure | C45: (10) Improve energy efficiency
A46: (5) Address homelessness | C46: (11) Reduction in crime reports
A47: (6) Assist affordable housing for low income households | C47: (12) Other – must provide description in boxes 1.4 (IHP) and 1.5 (APR) below | AA47: 3
A49: IHP: PLANNED PROGRAM YEAR ACTIVITIES (NAHASDA § 102(b)(2)(A))
A50: For each planned activity, complete all the non-shaded sections below. It is recommended that for each program name you assign a unique identifier to help distinguish individual programs. This unique number can be any number of your choosing, but it should be simple and clear so that you and HUD can track tasks and results under the program and collect appropriate file documentation tied to this program.
A51: § One way to number your programs is chronologically. For example, you could number your programs 2011-1,
A52: 2011-2, 2011-3 etc.
A53: § Or, you may wish to number the programs based on type. For example rental 1, rental 2, homebuyer1,
A54: homebuyer 2 etc. This type of numbering system might be appropriate if you have many programs
A55: that last over several years.
A56: § Finally, you may wish to use an outline style of numbering. For example, all programs under your first
A57: eligible activity would start with the number 1 and then be consecutively numbered as 1.1, 1.2, 1.3 etc.
A58: The programs under the second eligible activity would be numbered as 2.1, 2.2, 2.3 etc.
A60: APR: REPORTING ON PROGRAM YEAR PROGRESS (NAHASDA § 404(b))
A62: Complete the shaded section of text below to describe your completed program tasks and actual results. Only report on activities completed during the 12-month program year. Financial data should be presented using the same basis of accounting as the Schedule of Expenditures of Federal Awards (SEFA) in the annual audit. For unit accomplishments, only count units when the unit was completed and occupied during the year. For households, only count the household if it received the assistance during the previous 12-month program year.
A64: 3.1. Program Name and Unique Identifier:
A65: 3.2. Program Description (This should be the description of the planned program.):
A66: a
A67: 3.3. Eligible Activity Number (Select one activity from the Eligible Activity list. Do not combine homeownership and rental housing in one activity, so that when housing units are reported in the APR they are correctly identified as homeownership or rental.): | D67: 5
A68: 3.4. Intended Outcome Number (Select one outcome from the Outcome list. Each program can have only one outcome. If more than one outcome applies, create a separate program for each outcome.): | D68: 9
A69: Describe Other Intended Outcome (Only if you selected "Other" above.):
A71: 3.5. Actual Outcome Number (In the APR identify the actual outcome from the Outcome list.): | D71: 3
A72: Describe Other Actual Outcome (Only if you selected "Other" above.):
A74: 3.6. Who Will Be Assisted (Describe the types of households that will be assisted under the program. Please note: assistance made available to families whose incomes fall within 80 to 100 percent of the median should be included as a separate program within this section.):
A75: a
A76: 3.7. Types and Level of Assistance (Describe the types and the level of assistance that will be provided to each household, as applicable.):
A77: a
A78: 3.8. APR: Describe the accomplishments for the APR in the 12-month program year.
A79: a
A80: 3.9: Planned and Actual Outputs for 12-Month Program Year
A81: Planned Number of Units to be Completed in Year Under this Program | B81: Planned Number of Households To Be Served in Year Under this Program | C81: Planned Number of Acres To Be Purchased in Year Under this Program
A82: 5
A83: APR: Actual Number of Units Completed in Program Year | B83: APR: Actual Number of Households Served in Program Year | C83: APR: Actual Number of Acres Purchased in Program Year
A84: 6
A85: 3.10: APR: If the program is behind schedule, explain why. (24 CFR § 1000.512(b)(2))
A86: a

Sheet Section 3 (4)
B1: Units | N1: (1) Modernization of 1937 Act Housing [202(1)] | O1: (1) Reduce over-crowding
A2: SECTION 3: PROGRAM DESCRIPTIONS | M2: 1 | N2: (2) Operation of 1937 Act Housing [202(1)] | O2: (2) Assist renters to become homeowners
A3: [102(b)(2)(A)], [233(a)], [235(c)], [404(b)], 24 CFR §1000.512(b)(2) and (3) | M3: 2 | N3: (3) Acquisition of Rental Housing [202(2)] | O3: (3) Improve quality of substandard units
M4: 3 | N4: (4) Construction of Rental Housing [202(2)] | O4: (4) Improve quality of existing infrastructure
A5: Planning and Reporting Program Year Activities | M5: 4 | N5: (5) Rehabilitation of Rental Housing [202(2)] | O5: (5) Address homelessness
N6: (6) Acquisition of Land for Rental Housing Development [202(2)] | O6: (6) Assist affordable housing for low income households
N7: (7) Development of Emergency Shelters [202(2)] | O7: (7) Create new affordable rental units
M8: 6 | N8: (8) Conversion of Other Structures to Affordable Housing [202(2)] | O8: (8) Assist affordable housing for college students
A9: Eligible Activity May Include (citations below all reference sections in NAHASDA): | M9: 8 | N9: (9) Other Rental Housing Development [202(2)] | O9: (9) Provide accessibility for disabled/elderly persons
A10: Eligible Activity | B10: Output Measure | C10: Output Completion | N10: (10) Acquisition of Land for Homebuyer Unit Development [202(2)] | O10: (10) Improve energy efficiency
A11: (1) Modernization of 1937 Act Housing [202(1)] | B11: Units | C11: All work completed and unit passed final inspection | N11: (11) New Construction of Homebuyer Units [202(2)] | O11: (11) Reduction in crime reports
A12: (2) Operation of 1937 Act Housing [202(1)] | B12: Units | C12: Number of units in inventory at Program Year End (PYE) | N12: (12) Acquisition of Homebuyer Units [202(2)] | O12: (12) Other – must provide description in boxes 1.4 (IHP) and 1.5 (APR) below
A13: (3) Acquisition of Rental Housing [202(2)] | B13: Units | C13: When recipient takes title to the unit | N13: (13) Down Payment/Closing Cost Assistance [202(2)]
A14: (4) Construction of Rental Housing [202(2)] | B14: Units | C14: All work completed and unit passed final inspection | N14: (14) Lending Subsidies for Homebuyers (Loan) [202(2)]
A15: (5) Rehabilitation of Rental Housing [202(2)] | B15: Units | C15: All work completed and unit passed final inspection | N15: (15) Other Homebuyer Assistance Activities [202(2)]
A16: (6) Acquisition of Land for Rental Housing Development [202(2)] | B16: Acres | C16: When recipient takes title to the land | N16: (16) Rehabilitation Assistance to Existing Homeowners [202(2)]
A17: (7) Development of Emergency Shelters [202(2)] | B17: Households | C17: Number of households served at any one time, based on capacity of the shelter | N17: (17) Tenant Based Rental Assistance [202(3)]
A18: (8) Conversion of Other Structures to Affordable Housing [202(2)] | B18: Units | C18: All work completed and unit passed final inspection | N18: (18) Other Housing Services [202(3)]
A19: (9) Other Rental Housing Development [202(2)] | B19: Units | C19: All work completed and unit passed final inspection | N19: (19) Housing Management Services [202(4)]
A20: (10) Acquisition of Land for Homebuyer Unit Development [202(2)] | B20: Acres | C20: When recipient takes title to the land | N20: (20) Operation and Maintenance of NAHASDA-Assisted Units [202(4)]
A21: (11) New Construction of Homebuyer Units [202(2)] | B21: Units | C21: All work completed and unit passed final inspection | N21: (21) Crime Prevention and Safety [202(5)]
A22: (12) Acquisition of Homebuyer Units [202(2)] | B22: Units | C22: When recipient takes title to the unit | N22: (22) Model Activities [202(6)]
A23: (13) Down Payment/Closing Cost Assistance [202(2)] | B23: Units | C23: When binding commitment signed | N23: (23) Self-Determination Program [231-235]
A24: (14) Lending Subsidies for Homebuyers (Loan) [202(2)] | B24: Units | C24: When binding commitment signed | N24: (24) Infrastructure to Support Housing [202(2)]
A25: (15) Other Homebuyer Assistance Activities [202(2)] | B25: Units | C25: When binding commitment signed | N25: (25) Reserve Accounts [202(9)]
A26: (16) Rehabilitation Assistance to Existing Homeowners [202(2)] | B26: Units | C26: All work completed and unit passed final inspection
A27: (17) Tenant Based Rental Assistance [202(3)] | B27: Households | C27: Count each household once per year
A28: (18) Other Housing Service [202(3)] | B28: Households | C28: Count each household once per year
A29: (19) Housing Management Services [202(4)] | B29: Households | C29: Count each household once per year
A30: (20) Operation and Maintenance of NAHASDA-Assisted Units [202(4)] | B30: Units | C30: Number of units in inventory at PYE
A31: (21) Crime Prevention and Safety [202(5)] | B31: Dollars | C31: Dollars spent (report in Uses of Funding Table only)
A32: (22) Model Activities [202(6)] | B32: Dollars | C32: Dollars spent (report in Uses of Funding Table only)
A33: (23) Self-Determination Program [231-235]
A34: Acquisition | B34: Units | C34: When recipient takes title to the unit
A35: Construction | B35: Units | C35: All work completed and unit passed final inspection
A36: Rehabilitation | B36: Units | C36: All work completed and unit passed final inspection
A37: Infrastructure | B37: Dollars | C37: Dollars spent (report in Uses of Funding Table only)
A38: (24) Infrastructure to Support Housing [202(2)] | B38: Dollars | C38: Dollars spent (report in Uses of Funding Table only)
A39: (25) Reserve Accounts [202(9)] | B39: N/A | C39: N/A
A41: Outcome May Include:
A42: (1) Reduce over-crowding | C42: (7) Create new affordable rental units
A43: (2) Assist renters to become homeowners | C43: (8) Assist affordable housing for college students
A44: (3) Improve quality of substandard units | C44: (9) Provide accessibility for disabled/elderly persons
A45: (4) Improve quality of existing infrastructure | C45: (10) Improve energy efficiency
A46: (5) Address homelessness | C46: (11) Reduction in crime reports
A47: (6) Assist affordable housing for low income households | C47: (12) Other – must provide description in boxes 1.4 (IHP) and 1.5 (APR) below | AA47: 4
A49: IHP: PLANNED PROGRAM YEAR ACTIVITIES (NAHASDA § 102(b)(2)(A))
A50: For each planned activity, complete all the non-shaded sections below. It is recommended that for each program name you assign a unique identifier to help distinguish individual programs. This unique number can be any number of your choosing, but it should be simple and clear so that you and HUD can track tasks and results under the program and collect appropriate file documentation tied to this program.
A51: § One way to number your programs is chronologically. For example, you could number your programs 2011-1,
A52: 2011-2, 2011-3 etc.
A53: § Or, you may wish to number the programs based on type. For example rental 1, rental 2, homebuyer1,
A54: homebuyer 2 etc. This type of numbering system might be appropriate if you have many programs
A55: that last over several years.
A56: § Finally, you may wish to use an outline style of numbering. For example, all programs under your first
A57: eligible activity would start with the number 1 and then be consecutively numbered as 1.1, 1.2, 1.3 etc.
A58: The programs under the second eligible activity would be numbered as 2.1, 2.2, 2.3 etc.
A60: APR: REPORTING ON PROGRAM YEAR PROGRESS (NAHASDA § 404(b))
A62: Complete the shaded section of text below to describe your completed program tasks and actual results. Only report on activities completed during the 12-month program year. Financial data should be presented using the same basis of accounting as the Schedule of Expenditures of Federal Awards (SEFA) in the annual audit. For unit accomplishments, only count units when the unit was completed and occupied during the year. For households, only count the household if it received the assistance during the previous 12-month program year.
A64: 4.1. Program Name and Unique Identifier:
A65: 4.2. Program Description (This should be the description of the planned program.):
A66: a
A67: 4.3. Eligible Activity Number (Select one activity from the Eligible Activity list. Do not combine homeownership and rental housing in one activity, so that when housing units are reported in the APR they are correctly identified as homeownership or rental.): | D67: 16
A68: 4.4. Intended Outcome Number (Select one outcome from the Outcome list. Each program can have only one outcome. If more than one outcome applies, create a separate program for each outcome.): | D68: 6
A69: Describe Other Intended Outcome (Only if you selected "Other" above.):
A71: 4.5. Actual Outcome Number (In the APR identify the actual outcome from the Outcome list.): | D71: 12
A72: Describe Other Actual Outcome (Only if you selected "Other" above.):
A73: a
A74: 4.6. Who Will Be Assisted (Describe the types of households that will be assisted under the program. Please note: assistance made available to families whose incomes fall within 80 to 100 percent of the median should be included as a separate program within this section.):
A75: a
A76: 4.7. Types and Level of Assistance (Describe the types and the level of assistance that will be provided to each household, as applicable.):
A77: a
A78: 4.8. APR: Describe the accomplishments for the APR in the 12-month program year.
A79: a
A80: 4.9: Planned and Actual Outputs for 12-Month Program Year
A81: Planned Number of Units to be Completed in Year Under this Program | B81: Planned Number of Households To Be Served in Year Under this Program | C81: Planned Number of Acres To Be Purchased in Year Under this Program
A82: 5
A83: APR: Actual Number of Units Completed in Program Year | B83: APR: Actual Number of Households Served in Program Year | C83: APR: Actual Number of Acres Purchased in Program Year
A84: 0
A85: 4.10: APR: If the program is behind schedule, explain why. (24 CFR § 1000.512(b)(2))
A86: a

Sheet Section 3 (5)
B1: Households | N1: (1) Modernization of 1937 Act Housing [202(1)] | O1: (1) Reduce over-crowding
A2: SECTION 3: PROGRAM DESCRIPTIONS | M2: 1 | N2: (2) Operation of 1937 Act Housing [202(1)] | O2: (2) Assist renters to become homeowners
A3: [102(b)(2)(A)], [233(a)], [235(c)], [404(b)], 24 CFR §1000.512(b)(2) and (3) | M3: 2 | N3: (3) Acquisition of Rental Housing [202(2)] | O3: (3) Improve quality of substandard units
M4: 3 | N4: (4) Construction of Rental Housing [202(2)] | O4: (4) Improve quality of existing infrastructure
A5: Planning and Reporting Program Year Activities | M5: 4 | N5: (5) Rehabilitation of Rental Housing [202(2)] | O5: (5) Address homelessness
N6: (6) Acquisition of Land for Rental Housing Development [202(2)] | O6: (6) Assist affordable housing for low income households
N7: (7) Development of Emergency Shelters [202(2)] | O7: (7) Create new affordable rental units
M8: 6 | N8: (8) Conversion of Other Structures to Affordable Housing [202(2)] | O8: (8) Assist affordable housing for college students
A9: Eligible Activity May Include (citations below all reference sections in NAHASDA): | M9: 8 | N9: (9) Other Rental Housing Development [202(2)] | O9: (9) Provide accessibility for disabled/elderly persons
A10: Eligible Activity | B10: Output Measure | C10: Output Completion | N10: (10) Acquisition of Land for Homebuyer Unit Development [202(2)] | O10: (10) Improve energy efficiency
A11: (1) Modernization of 1937 Act Housing [202(1)] | B11: Units | C11: All work completed and unit passed final inspection | N11: (11) New Construction of Homebuyer Units [202(2)] | O11: (11) Reduction in crime reports
A12: (2) Operation of 1937 Act Housing [202(1)] | B12: Units | C12: Number of units in inventory at Program Year End (PYE) | N12: (12) Acquisition of Homebuyer Units [202(2)] | O12: (12) Other – must provide description in boxes 1.4 (IHP) and 1.5 (APR) below
A13: (3) Acquisition of Rental Housing [202(2)] | B13: Units | C13: When recipient takes title to the unit | N13: (13) Down Payment/Closing Cost Assistance [202(2)]
A14: (4) Construction of Rental Housing [202(2)] | B14: Units | C14: All work completed and unit passed final inspection | N14: (14) Lending Subsidies for Homebuyers (Loan) [202(2)]
A15: (5) Rehabilitation of Rental Housing [202(2)] | B15: Units | C15: All work completed and unit passed final inspection | N15: (15) Other Homebuyer Assistance Activities [202(2)]
A16: (6) Acquisition of Land for Rental Housing Development [202(2)] | B16: Acres | C16: When recipient takes title to the land | N16: (16) Rehabilitation Assistance to Existing Homeowners [202(2)]
A17: (7) Development of Emergency Shelters [202(2)] | B17: Households | C17: Number of households served at any one time, based on capacity of the shelter | N17: (17) Tenant Based Rental Assistance [202(3)]
A18: (8) Conversion of Other Structures to Affordable Housing [202(2)] | B18: Units | C18: All work completed and unit passed final inspection | N18: (18) Other Housing Services [202(3)]
A19: (9) Other Rental Housing Development [202(2)] | B19: Units | C19: All work completed and unit passed final inspection | N19: (19) Housing Management Services [202(4)]
A20: (10) Acquisition of Land for Homebuyer Unit Development [202(2)] | B20: Acres | C20: When recipient takes title to the land | N20: (20) Operation and Maintenance of NAHASDA-Assisted Units [202(4)]
A21: (11) New Construction of Homebuyer Units [202(2)] | B21: Units | C21: All work completed and unit passed final inspection | N21: (21) Crime Prevention and Safety [202(5)]
A22: (12) Acquisition of Homebuyer Units [202(2)] | B22: Units | C22: When recipient takes title to the unit | N22: (22) Model Activities [202(6)]
A23: (13) Down Payment/Closing Cost Assistance [202(2)] | B23: Units | C23: When binding commitment signed | N23: (23) Self-Determination Program [231-235]
A24: (14) Lending Subsidies for Homebuyers (Loan) [202(2)] | B24: Units | C24: When binding commitment signed | N24: (24) Infrastructure to Support Housing [202(2)]
A25: (15) Other Homebuyer Assistance Activities [202(2)] | B25: Units | C25: When binding commitment signed | N25: (25) Reserve Accounts [202(9)]
A26: (16) Rehabilitation Assistance to Existing Homeowners [202(2)] | B26: Units | C26: All work completed and unit passed final inspection
A27: (17) Tenant Based Rental Assistance [202(3)] | B27: Households | C27: Count each household once per year
A28: (18) Other Housing Service [202(3)] | B28: Households | C28: Count each household once per year
A29: (19) Housing Management Services [202(4)] | B29: Households | C29: Count each household once per year
A30: (20) Operation and Maintenance of NAHASDA-Assisted Units [202(4)] | B30: Units | C30: Number of units in inventory at PYE
A31: (21) Crime Prevention and Safety [202(5)] | B31: Dollars | C31: Dollars spent (report in Uses of Funding Table only)
A32: (22) Model Activities [202(6)] | B32: Dollars | C32: Dollars spent (report in Uses of Funding Table only)
A33: (23) Self-Determination Program [231-235]
A34: Acquisition | B34: Units | C34: When recipient takes title to the unit
A35: Construction | B35: Units | C35: All work completed and unit passed final inspection
A36: Rehabilitation | B36: Units | C36: All work completed and unit passed final inspection
A37: Infrastructure | B37: Dollars | C37: Dollars spent (report in Uses of Funding Table only)
A38: (24) Infrastructure to Support Housing [202(2)] | B38: Dollars | C38: Dollars spent (report in Uses of Funding Table only)
A39: (25) Reserve Accounts [202(9)] | B39: N/A | C39: N/A
A41: Outcome May Include:
A42: (1) Reduce over-crowding | C42: (7) Create new affordable rental units
A43: (2) Assist renters to become homeowners | C43: (8) Assist affordable housing for college students
A44: (3) Improve quality of substandard units | C44: (9) Provide accessibility for disabled/elderly persons
A45: (4) Improve quality of existing infrastructure | C45: (10) Improve energy efficiency
A46: (5) Address homelessness | C46: (11) Reduction in crime reports
A47: (6) Assist affordable housing for low income households | C47: (12) Other – must provide description in boxes 1.4 (IHP) and 1.5 (APR) below | AA47: 5
A49: IHP: PLANNED PROGRAM YEAR ACTIVITIES (NAHASDA § 102(b)(2)(A))
A50: For each planned activity, complete all the non-shaded sections below. It is recommended that for each program name you assign a unique identifier to help distinguish individual programs. This unique number can be any number of your choosing, but it should be simple and clear so that you and HUD can track tasks and results under the program and collect appropriate file documentation tied to this program.
A51: § One way to number your programs is chronologically. For example, you could number your programs 2011-1,
A52: 2011-2, 2011-3 etc.
A53: § Or, you may wish to number the programs based on type. For example rental 1, rental 2, homebuyer1,
A54: homebuyer 2 etc. This type of numbering system might be appropriate if you have many programs
A55: that last over several years.
A56: § Finally, you may wish to use an outline style of numbering. For example, all programs under your first
A57: eligible activity would start with the number 1 and then be consecutively numbered as 1.1, 1.2, 1.3 etc.
A58: The programs under the second eligible activity would be numbered as 2.1, 2.2, 2.3 etc.
A60: APR: REPORTING ON PROGRAM YEAR PROGRESS (NAHASDA § 404(b))
A62: Complete the shaded section of text below to describe your completed program tasks and actual results. Only report on activities completed during the 12-month program year. Financial data should be presented using the same basis of accounting as the Schedule of Expenditures of Federal Awards (SEFA) in the annual audit. For unit accomplishments, only count units when the unit was completed and occupied during the year. For households, only count the household if it received the assistance during the previous 12-month program year.
A64: 5.1. Program Name and Unique Identifier:
A65: 5.2. Program Description (This should be the description of the planned program.):
A66: a
A67: 5.3. Eligible Activity Number (Select one activity from the Eligible Activity list. Do not combine homeownership and rental housing in one activity, so that when housing units are reported in the APR they are correctly identified as homeownership or rental.): | D67: 19
A68: 5.4. Intended Outcome Number (Select one outcome from the Outcome list. Each program can have only one outcome. If more than one outcome applies, create a separate program for each outcome.): | D68: 6
A69: Describe Other Intended Outcome (Only if you selected "Other" above.):
A71: 5.5. Actual Outcome Number (In the APR identify the actual outcome from the Outcome list.): | D71: 6
A72: Describe Other Actual Outcome (Only if you selected "Other" above.):
A74: 5.6. Who Will Be Assisted (Describe the types of households that will be assisted under the program. Please note: assistance made available to families whose incomes fall within 80 to 100 percent of the median should be included as a separate program within this section.):
A75: a
A76: 5.7. Types and Level of Assistance (Describe the types and the level of assistance that will be provided to each household, as applicable.):
A77: a
A78: 5.8. APR: Describe the accomplishments for the APR in the 12-month program year.
A79: a
A80: 5.9: Planned and Actual Outputs for 12-Month Program Year
A81: Planned Number of Units to be Completed in Year Under this Program | B81: Planned Number of Households To Be Served in Year Under this Program | C81: Planned Number of Acres To Be Purchased in Year Under this Program
B82: 68
A83: APR: Actual Number of Units Completed in Program Year | B83: APR: Actual Number of Households Served in Program Year | C83: APR: Actual Number of Acres Purchased in Program Year
B84: 70
A85: 5.10: APR: If the program is behind schedule, explain why. (24 CFR § 1000.512(b)(2))
A86: a

Sheet Section 3 (6)
B1: Households | N1: (1) Modernization of 1937 Act Housing [202(1)] | O1: (1) Reduce over-crowding
A2: SECTION 3: PROGRAM DESCRIPTIONS | M2: 1 | N2: (2) Operation of 1937 Act Housing [202(1)] | O2: (2) Assist renters to become homeowners
A3: [102(b)(2)(A)], [233(a)], [235(c)], [404(b)], 24 CFR §1000.512(b)(2) and (3) | M3: 2 | N3: (3) Acquisition of Rental Housing [202(2)] | O3: (3) Improve quality of substandard units
M4: 3 | N4: (4) Construction of Rental Housing [202(2)] | O4: (4) Improve quality of existing infrastructure
A5: Planning and Reporting Program Year Activities | M5: 4 | N5: (5) Rehabilitation of Rental Housing [202(2)] | O5: (5) Address homelessness
N6: (6) Acquisition of Land for Rental Housing Development [202(2)] | O6: (6) Assist affordable housing for low income households
N7: (7) Development of Emergency Shelters [202(2)] | O7: (7) Create new affordable rental units
M8: 6 | N8: (8) Conversion of Other Structures to Affordable Housing [202(2)] | O8: (8) Assist affordable housing for college students
A9: Eligible Activity May Include (citations below all reference sections in NAHASDA): | M9: 8 | N9: (9) Other Rental Housing Development [202(2)] | O9: (9) Provide accessibility for disabled/elderly persons
A10: Eligible Activity | B10: Output Measure | C10: Output Completion | N10: (10) Acquisition of Land for Homebuyer Unit Development [202(2)] | O10: (10) Improve energy efficiency
A11: (1) Modernization of 1937 Act Housing [202(1)] | B11: Units | C11: All work completed and unit passed final inspection | N11: (11) New Construction of Homebuyer Units [202(2)] | O11: (11) Reduction in crime reports
A12: (2) Operation of 1937 Act Housing [202(1)] | B12: Units | C12: Number of units in inventory at Program Year End (PYE) | N12: (12) Acquisition of Homebuyer Units [202(2)] | O12: (12) Other – must provide description in boxes 1.4 (IHP) and 1.5 (APR) below
A13: (3) Acquisition of Rental Housing [202(2)] | B13: Units | C13: When recipient takes title to the unit | N13: (13) Down Payment/Closing Cost Assistance [202(2)]
A14: (4) Construction of Rental Housing [202(2)] | B14: Units | C14: All work completed and unit passed final inspection | N14: (14) Lending Subsidies for Homebuyers (Loan) [202(2)]
A15: (5) Rehabilitation of Rental Housing [202(2)] | B15: Units | C15: All work completed and unit passed final inspection | N15: (15) Other Homebuyer Assistance Activities [202(2)]
A16: (6) Acquisition of Land for Rental Housing Development [202(2)] | B16: Acres | C16: When recipient takes title to the land | N16: (16) Rehabilitation Assistance to Existing Homeowners [202(2)]
A17: (7) Development of Emergency Shelters [202(2)] | B17: Households | C17: Number of households served at any one time, based on capacity of the shelter | N17: (17) Tenant Based Rental Assistance [202(3)]
A18: (8) Conversion of Other Structures to Affordable Housing [202(2)] | B18: Units | C18: All work completed and unit passed final inspection | N18: (18) Other Housing Services [202(3)]
A19: (9) Other Rental Housing Development [202(2)] | B19: Units | C19: All work completed and unit passed final inspection | N19: (19) Housing Management Services [202(4)]
A20: (10) Acquisition of Land for Homebuyer Unit Development [202(2)] | B20: Acres | C20: When recipient takes title to the land | N20: (20) Operation and Maintenance of NAHASDA-Assisted Units [202(4)]
A21: (11) New Construction of Homebuyer Units [202(2)] | B21: Units | C21: All work completed and unit passed final inspection | N21: (21) Crime Prevention and Safety [202(5)]
A22: (12) Acquisition of Homebuyer Units [202(2)] | B22: Units | C22: When recipient takes title to the unit | N22: (22) Model Activities [202(6)]
A23: (13) Down Payment/Closing Cost Assistance [202(2)] | B23: Units | C23: When binding commitment signed | N23: (23) Self-Determination Program [231-235]
A24: (14) Lending Subsidies for Homebuyers (Loan) [202(2)] | B24: Units | C24: When binding commitment signed | N24: (24) Infrastructure to Support Housing [202(2)]
A25: (15) Other Homebuyer Assistance Activities [202(2)] | B25: Units | C25: When binding commitment signed | N25: (25) Reserve Accounts [202(9)]
A26: (16) Rehabilitation Assistance to Existing Homeowners [202(2)] | B26: Units | C26: All work completed and unit passed final inspection
A27: (17) Tenant Based Rental Assistance [202(3)] | B27: Households | C27: Count each household once per year
A28: (18) Other Housing Service [202(3)] | B28: Households | C28: Count each household once per year
A29: (19) Housing Management Services [202(4)] | B29: Households | C29: Count each household once per year
A30: (20) Operation and Maintenance of NAHASDA-Assisted Units [202(4)] | B30: Units | C30: Number of units in inventory at PYE
A31: (21) Crime Prevention and Safety [202(5)] | B31: Dollars | C31: Dollars spent (report in Uses of Funding Table only)
A32: (22) Model Activities [202(6)] | B32: Dollars | C32: Dollars spent (report in Uses of Funding Table only)
A33: (23) Self-Determination Program [231-235]
A34: Acquisition | B34: Units | C34: When recipient takes title to the unit
A35: Construction | B35: Units | C35: All work completed and unit passed final inspection
A36: Rehabilitation | B36: Units | C36: All work completed and unit passed final inspection
A37: Infrastructure | B37: Dollars | C37: Dollars spent (report in Uses of Funding Table only)
A38: (24) Infrastructure to Support Housing [202(2)] | B38: Dollars | C38: Dollars spent (report in Uses of Funding Table only)
A39: (25) Reserve Accounts [202(9)] | B39: N/A | C39: N/A
A41: Outcome May Include:
A42: (1) Reduce over-crowding | C42: (7) Create new affordable rental units
A43: (2) Assist renters to become homeowners | C43: (8) Assist affordable housing for college students
A44: (3) Improve quality of substandard units | C44: (9) Provide accessibility for disabled/elderly persons
A45: (4) Improve quality of existing infrastructure | C45: (10) Improve energy efficiency
A46: (5) Address homelessness | C46: (11) Reduction in crime reports
A47: (6) Assist affordable housing for low income households | C47: (12) Other – must provide description in boxes 1.4 (IHP) and 1.5 (APR) below | AA47: 6
A49: IHP: PLANNED PROGRAM YEAR ACTIVITIES (NAHASDA § 102(b)(2)(A))
A50: For each planned activity, complete all the non-shaded sections below. It is recommended that for each program name you assign a unique identifier to help distinguish individual programs. This unique number can be any number of your choosing, but it should be simple and clear so that you and HUD can track tasks and results under the program and collect appropriate file documentation tied to this program.
A51: § One way to number your programs is chronologically. For example, you could number your programs 2011-1,
A52: 2011-2, 2011-3 etc.
A53: § Or, you may wish to number the programs based on type. For example rental 1, rental 2, homebuyer1,
A54: homebuyer 2 etc. This type of numbering system might be appropriate if you have many programs
A55: that last over several years.
A56: § Finally, you may wish to use an outline style of numbering. For example, all programs under your first
A57: eligible activity would start with the number 1 and then be consecutively numbered as 1.1, 1.2, 1.3 etc.
A58: The programs under the second eligible activity would be numbered as 2.1, 2.2, 2.3 etc.
A60: APR: REPORTING ON PROGRAM YEAR PROGRESS (NAHASDA § 404(b))
A62: Complete the shaded section of text below to describe your completed program tasks and actual results. Only report on activities completed during the 12-month program year. Financial data should be presented using the same basis of accounting as the Schedule of Expenditures of Federal Awards (SEFA) in the annual audit. For unit accomplishments, only count units when the unit was completed and occupied during the year. For households, only count the household if it received the assistance during the previous 12-month program year.
A64: 6.1. Program Name and Unique Identifier:
A65: 6.2. Program Description (This should be the description of the planned program.):
A66: a
A67: 6.3. Eligible Activity Number (Select one activity from the Eligible Activity list. Do not combine homeownership and rental housing in one activity, so that when housing units are reported in the APR they are correctly identified as homeownership or rental.): | D67: 18
A68: 6.4. Intended Outcome Number (Select one outcome from the Outcome list. Each program can have only one outcome. If more than one outcome applies, create a separate program for each outcome.): | D68: 12
A69: Describe Other Intended Outcome (Only if you selected "Other" above.):
A70: a
A71: 6.5. Actual Outcome Number (In the APR identify the actual outcome from the Outcome list.): | D71: 11
A72: Describe Other Actual Outcome (Only if you selected "Other" above.):
A74: 6.6. Who Will Be Assisted (Describe the types of households that will be assisted under the program. Please note: assistance made available to families whose incomes fall within 80 to 100 percent of the median should be included as a separate program within this section.):
A75: a
A76: 6.7. Types and Level of Assistance (Describe the types and the level of assistance that will be provided to each household, as applicable.):
A77: a
A78: 6.8. APR: Describe the accomplishments for the APR in the 12-month program year.
A79: a
A80: 6.9: Planned and Actual Outputs for 12-Month Program Year
A81: Planned Number of Units to be Completed in Year Under this Program | B81: Planned Number of Households To Be Served in Year Under this Program | C81: Planned Number of Acres To Be Purchased in Year Under this Program
B82: 68
A83: APR: Actual Number of Units Completed in Program Year | B83: APR: Actual Number of Households Served in Program Year | C83: APR: Actual Number of Acres Purchased in Program Year
B84: 68
A85: 6.10: APR: If the program is behind schedule, explain why. (24 CFR § 1000.512(b)(2))
A86: a

Sheet Section 3 (7)
B1: Units | N1: (1) Modernization of 1937 Act Housing [202(1)] | O1: (1) Reduce over-crowding
A2: SECTION 3: PROGRAM DESCRIPTIONS | M2: 1 | N2: (2) Operation of 1937 Act Housing [202(1)] | O2: (2) Assist renters to become homeowners
A3: [102(b)(2)(A)], [233(a)], [235(c)], [404(b)], 24 CFR §1000.512(b)(2) and (3) | M3: 2 | N3: (3) Acquisition of Rental Housing [202(2)] | O3: (3) Improve quality of substandard units
M4: 3 | N4: (4) Construction of Rental Housing [202(2)] | O4: (4) Improve quality of existing infrastructure
A5: Planning and Reporting Program Year Activities | M5: 4 | N5: (5) Rehabilitation of Rental Housing [202(2)] | O5: (5) Address homelessness
N6: (6) Acquisition of Land for Rental Housing Development [202(2)] | O6: (6) Assist affordable housing for low income households
N7: (7) Development of Emergency Shelters [202(2)] | O7: (7) Create new affordable rental units
M8: 6 | N8: (8) Conversion of Other Structures to Affordable Housing [202(2)] | O8: (8) Assist affordable housing for college students
A9: Eligible Activity May Include (citations below all reference sections in NAHASDA): | M9: 8 | N9: (9) Other Rental Housing Development [202(2)] | O9: (9) Provide accessibility for disabled/elderly persons
A10: Eligible Activity | B10: Output Measure | C10: Output Completion | N10: (10) Acquisition of Land for Homebuyer Unit Development [202(2)] | O10: (10) Improve energy efficiency
A11: (1) Modernization of 1937 Act Housing [202(1)] | B11: Units | C11: All work completed and unit passed final inspection | N11: (11) New Construction of Homebuyer Units [202(2)] | O11: (11) Reduction in crime reports
A12: (2) Operation of 1937 Act Housing [202(1)] | B12: Units | C12: Number of units in inventory at Program Year End (PYE) | N12: (12) Acquisition of Homebuyer Units [202(2)] | O12: (12) Other – must provide description in boxes 1.4 (IHP) and 1.5 (APR) below
A13: (3) Acquisition of Rental Housing [202(2)] | B13: Units | C13: When recipient takes title to the unit | N13: (13) Down Payment/Closing Cost Assistance [202(2)]
A14: (4) Construction of Rental Housing [202(2)] | B14: Units | C14: All work completed and unit passed final inspection | N14: (14) Lending Subsidies for Homebuyers (Loan) [202(2)]
A15: (5) Rehabilitation of Rental Housing [202(2)] | B15: Units | C15: All work completed and unit passed final inspection | N15: (15) Other Homebuyer Assistance Activities [202(2)]
A16: (6) Acquisition of Land for Rental Housing Development [202(2)] | B16: Acres | C16: When recipient takes title to the land | N16: (16) Rehabilitation Assistance to Existing Homeowners [202(2)]
A17: (7) Development of Emergency Shelters [202(2)] | B17: Households | C17: Number of households served at any one time, based on capacity of the shelter | N17: (17) Tenant Based Rental Assistance [202(3)]
A18: (8) Conversion of Other Structures to Affordable Housing [202(2)] | B18: Units | C18: All work completed and unit passed final inspection | N18: (18) Other Housing Services [202(3)]
A19: (9) Other Rental Housing Development [202(2)] | B19: Units | C19: All work completed and unit passed final inspection | N19: (19) Housing Management Services [202(4)]
A20: (10) Acquisition of Land for Homebuyer Unit Development [202(2)] | B20: Acres | C20: When recipient takes title to the land | N20: (20) Operation and Maintenance of NAHASDA-Assisted Units [202(4)]
A21: (11) New Construction of Homebuyer Units [202(2)] | B21: Units | C21: All work completed and unit passed final inspection | N21: (21) Crime Prevention and Safety [202(5)]
A22: (12) Acquisition of Homebuyer Units [202(2)] | B22: Units | C22: When recipient takes title to the unit | N22: (22) Model Activities [202(6)]
A23: (13) Down Payment/Closing Cost Assistance [202(2)] | B23: Units | C23: When binding commitment signed | N23: (23) Self-Determination Program [231-235]
A24: (14) Lending Subsidies for Homebuyers (Loan) [202(2)] | B24: Units | C24: When binding commitment signed | N24: (24) Infrastructure to Support Housing [202(2)]
A25: (15) Other Homebuyer Assistance Activities [202(2)] | B25: Units | C25: When binding commitment signed | N25: (25) Reserve Accounts [202(9)]
A26: (16) Rehabilitation Assistance to Existing Homeowners [202(2)] | B26: Units | C26: All work completed and unit passed final inspection
A27: (17) Tenant Based Rental Assistance [202(3)] | B27: Households | C27: Count each household once per year
A28: (18) Other Housing Service [202(3)] | B28: Households | C28: Count each household once per year
A29: (19) Housing Management Services [202(4)] | B29: Households | C29: Count each household once per year
A30: (20) Operation and Maintenance of NAHASDA-Assisted Units [202(4)] | B30: Units | C30: Number of units in inventory at PYE
A31: (21) Crime Prevention and Safety [202(5)] | B31: Dollars | C31: Dollars spent (report in Uses of Funding Table only)
A32: (22) Model Activities [202(6)] | B32: Dollars | C32: Dollars spent (report in Uses of Funding Table only)
A33: (23) Self-Determination Program [231-235]
A34: Acquisition | B34: Units | C34: When recipient takes title to the unit
A35: Construction | B35: Units | C35: All work completed and unit passed final inspection
A36: Rehabilitation | B36: Units | C36: All work completed and unit passed final inspection
A37: Infrastructure | B37: Dollars | C37: Dollars spent (report in Uses of Funding Table only)
A38: (24) Infrastructure to Support Housing [202(2)] | B38: Dollars | C38: Dollars spent (report in Uses of Funding Table only)
A39: (25) Reserve Accounts [202(9)] | B39: N/A | C39: N/A
A41: Outcome May Include:
A42: (1) Reduce over-crowding | C42: (7) Create new affordable rental units
A43: (2) Assist renters to become homeowners | C43: (8) Assist affordable housing for college students
A44: (3) Improve quality of substandard units | C44: (9) Provide accessibility for disabled/elderly persons
A45: (4) Improve quality of existing infrastructure | C45: (10) Improve energy efficiency
A46: (5) Address homelessness | C46: (11) Reduction in crime reports
A47: (6) Assist affordable housing for low income households | C47: (12) Other – must provide description in boxes 1.4 (IHP) and 1.5 (APR) below | AA47: 7
A49: IHP: PLANNED PROGRAM YEAR ACTIVITIES (NAHASDA § 102(b)(2)(A))
A50: For each planned activity, complete all the non-shaded sections below. It is recommended that for each program name you assign a unique identifier to help distinguish individual programs. This unique number can be any number of your choosing, but it should be simple and clear so that you and HUD can track tasks and results under the program and collect appropriate file documentation tied to this program.
A51: § One way to number your programs is chronologically. For example, you could number your programs 2011-1,
A52: 2011-2, 2011-3 etc.
A53: § Or, you may wish to number the programs based on type. For example rental 1, rental 2, homebuyer1,
A54: homebuyer 2 etc. This type of numbering system might be appropriate if you have many programs
A55: that last over several years.
A56: § Finally, you may wish to use an outline style of numbering. For example, all programs under your first
A57: eligible activity would start with the number 1 and then be consecutively numbered as 1.1, 1.2, 1.3 etc.
A58: The programs under the second eligible activity would be numbered as 2.1, 2.2, 2.3 etc.
A60: APR: REPORTING ON PROGRAM YEAR PROGRESS (NAHASDA § 404(b))
A62: Complete the shaded section of text below to describe your completed program tasks and actual results. Only report on activities completed during the 12-month program year. Financial data should be presented using the same basis of accounting as the Schedule of Expenditures of Federal Awards (SEFA) in the annual audit. For unit accomplishments, only count units when the unit was completed and occupied during the year. For households, only count the household if it received the assistance during the previous 12-month program year.
A64: 7.1. Program Name and Unique Identifier:
A65: 7.2. Program Description (This should be the description of the planned program.):
A66: a
A67: 7.3. Eligible Activity Number (Select one activity from the Eligible Activity list. Do not combine homeownership and rental housing in one activity, so that when housing units are reported in the APR they are correctly identified as homeownership or rental.): | D67: 20
A68: 7.4. Intended Outcome Number (Select one outcome from the Outcome list. Each program can have only one outcome. If more than one outcome applies, create a separate program for each outcome.): | D68: 3
A69: Describe Other Intended Outcome (Only if you selected "Other" above.):
A71: 7.5. Actual Outcome Number (In the APR identify the actual outcome from the Outcome list.): | D71: 3
A72: Describe Other Actual Outcome (Only if you selected "Other" above.):
A74: 7.6. Who Will Be Assisted (Describe the types of households that will be assisted under the program. Please note: assistance made available to families whose incomes fall within 80 to 100 percent of the median should be included as a separate program within this section.):
A75: a
A76: 7.7. Types and Level of Assistance (Describe the types and the level of assistance that will be provided to each household, as applicable.):
A77: a
A78: 7.8. APR: Describe the accomplishments for the APR in the 12-month program year.
A79: a
A80: 7.9: Planned and Actual Outputs for 12-Month Program Year
A81: Planned Number of Units to be Completed in Year Under this Program | B81: Planned Number of Households To Be Served in Year Under this Program | C81: Planned Number of Acres To Be Purchased in Year Under this Program
A82: 35
A83: APR: Actual Number of Units Completed in Program Year | B83: APR: Actual Number of Households Served in Program Year | C83: APR: Actual Number of Acres Purchased in Program Year
A84: 35
A85: 7.10: APR: If the program is behind schedule, explain why. (24 CFR § 1000.512(b)(2))
A86: a

Sheet Section 4
A2: SECTION 4: MAINTAINING 1937 ACT UNITS, DEMOLITION, AND DISPOSITION
A3: NAHASDA §§ 102(b)(2)(A)(v), 102(b)(2)(A)(iv)(I-III)
A6: (1) Maintaining 1937 Act Units (NAHASDA § 102(b)(2)(A)(v)) (Describe specifically how you will maintain and operate your 1937 Act housing units in order to ensure that these units will remain viable.):
A7: a
A9: (2) Demolition and Disposition (NAHASDA § 102(b)(2)(A)(iv)(I-III), 24 CFR 1000.134) Describe any planned demolition or sale of 1937 Act or NAHASDA-assisted housing units. If the recipient is planning on demolition or disposition of 1937 Act or NAHASDA-assisted housing units, be certain to include the timetable for any planned demolition or disposition and any other information that is required by HUD with respect to the demolition or disposition.
A10: a

Sheet Section 5
A2: SECTION 5: BUDGETS
A3: NAHASDA §§ 102(b)(2)(C), 404(b)
A16: (1) Sources of Funding (NAHASDA § 102(b)(2)(C)(i), (404(b)) (Complete the non-shaded portions of the chart below to describe your estimated or anticipated sources of funding for the 12-month program year. APR Actual Sources of Funding -- Please complete the shaded portions of the chart below to describe your actual funds received. Only report on funds actually received and under a grant agreement or other binding commitment during the 12-month program year.)
D18: IHP | I18: APR
A19: SOURCE | D19: (A) | E19: (B) | F19: (C) | G19: (D) | H19: (E) | I19: (F) | J19: (G) | K19: (H) | L19: (I) | M19: (J) | N19: (K)
D20: Estimated amount on hand at beginning of program year | E20: Estimated amount to be received during 12-month program year | F20: Estimated total sources of funds (A+B) | G20: Estimated funds to be expended during 12-month program year | H20: Estimated unexpended funds remaining at end of program year (C-D) | I20: Actual amount on hand at beginning of program year | J20: Actual amount received during 12-month program year | K20: Actual total sources of funding (F+G) | L20: Actual funds expended during 12-month program year | M20: Actual unexpended funds remaining at end of 12-month program year (H - I) | N20: Actual unexpended funds obligated but not expended at end of 12-month program year
A21: 1. IHBG Funds | D21: 200000 | E21: 649322 | F21: =SUM(D21:E21) -> 849322 | G21: 745322 | H21: 0 | I21: 1101731 | J21: 296610 | K21: =SUM(I21:J21) -> 1398341 | L21: 610717 | M21: =SUM(K21-L21) -> 787624 | N21: 0
A22: 2. IHBG Program Income | D22: 150000 | E22: 100000 | F22: 250000 | G22: 250000 | H22: =(F22-G22) -> 0 | I22: 618808 | J22: 159302 | K22: 778110 | L22: 0 | M22: 778110 | N22: 0
A23: 3. Title VI | D23: 0 | E23: 0 | F23: 0 | G23: 0 | H23: 0 | I23: 0 | J23: 0 | K23: 0 | L23: 0 | M23: 0 | N23: 0
A24: 4. Title VI Program Income | D24: 0 | E24: 0 | F24: 0 | G24: 0 | H24: 0 | I24: 0 | J24: 0 | K24: 0 | L24: 0 | M24: 0 | N24: 0
A25: 5. 1937 Act Operating Reserves | D25: 0 | F25: 0 | G25: 0 | H25: 0 | I25: 0 | K25: 0 | L25: 0 | M25: 0 | N25: 0
A26: 6. Carry Over 1937 Act Funds | D26: 0 | F26: 0 | G26: 0 | H26: 0 | I26: 0 | K26: 0 | L26: 0 | M26: 0 | N26: 0
A27: LEVERAGED FUNDS | G27: 0 | I27: 0
A28: 7. ICDBG Funds | D28: 0 | E28: 0 | F28: =SUM(D28:E28) -> 0 | G28: 0 | H28: =(F28-G28) -> 0 | I28: 159715 | J28: 297595 | K28: =SUM(I28:J28) -> 457310 | L28: 397552 | M28: =SUM(K28-L28) -> 59758 | N28: 0
A29: 8. Other Federal Funds | D29: 0 | E29: 0 | F29: =SUM(D29:E29) -> 0 | G29: 0 | H29: =(F29-G29) -> 0 | I29: 0 | J29: 0 | K29: =SUM(I29:J29) -> 0 | L29: 0 | M29: =SUM(K29-L29) -> 0 | N29: 0
A30: 9. LIHTC | D30: 0 | E30: 0 | F30: =SUM(D30:E30) -> 0 | G30: 0 | H30: =(F30-G30) -> 0 | I30: 0 | J30: 0 | K30: =SUM(I30:J30) -> 0 | L30: 0 | M30: =SUM(K30-L30) -> 0 | N30: 0
A31: 10. Non-Federal Funds | D31: 0 | E31: 0 | F31: =SUM(D31:E31) -> 0 | G31: 0 | H31: =(F31-G31) -> 0 | I31: 0 | J31: 5300 | K31: 5300 | L31: 5300 | M31: =SUM(K31-L31) -> 0 | N31: 0
A32: TOTAL | D32: =SUM(D21:D31) -> 350000 | E32: =SUM(E21:E31) -> 749322 | F32: =SUM(F21:F31) -> 1099322 | G32: =SUM(G21:G31) -> 995322 | H32: 0 | I32: 0 | J32: 758807 | K32: 2639061 | L32: 1013569 | M32: 1625492 | N32: 0
A33: TOTAL Columns C & H, 2 through 10 | F33: =SUM(F22:F31) -> 250000 | K33: =SUM(K22:K31) -> 1240720
A34: Notes:
A35: a. For the IHP, fill in columns A, B, C, D, and E (non-shaded columns). For the APR, fill in columns F, G, H, I, J, and K (shaded columns).
A36: b. Total of Column D should match the total of Column N from the Uses of Funding table below.
A37: c. Total of Column I should match the Total of Column Q from the Uses of Funding table below.
A38: d. For the IHP, describe any estimated leverage in Line 3 below (Estimated Sources or Uses of Funding). For the APR, describe actual leverage in Line 4 below.
A41: (2) Uses of Funding (NAHASDA § 102(b)(2)(C)(ii)) (Note that the budget should not exceed the total funds on hand (Column C) and insert as many rows as needed to include all the programs identified in Section 3. Actual expenditures in the APR section are for the 12-month program year.)
C43: IHP | I43: APR
C44: (L) | E44: (M) | G44: (N) | I44: (O) | K44: (P) | M44: (Q)
A45: PROGRAM NAME | C45: Prior and current year IHBG (only) funds to be expended in 12-month program year | E45: Total all other funds to be expended in 12-month program year | G45: Total funds to be expended in 12-month program year (L+M) | I45: Total IHBG (only) funds expended in 12-month program year | K45: Total all other funds expended in 12-month program year | M45: Total funds expended in 12-month program year (O+P)
A46: 2017--1 Modernization of 1937 Act Housing Units | C46: 175000 | E46: 50000 | G46: =SUM(C46:E46) -> 225000 | I46: 0 | K46: 0 | M46: =SUM(I46:K46) -> 0 | O46: Section 3 (1) | P46: 5 | R46: 0 | S46: 0 | V46: 3 | W46: 1
A47: 2017-2 Operation of 1937 Act Housing | C47: 66000 | E47: 0 | G47: =SUM(C47:E47) -> 66000 | I47: 121703 | K47: 0 | M47: =SUM(I47:K47) -> 121703 | O47: Section 3 (2) | P47: 33 | S47: 33 | V47: 6 | W47: 2
A48: 2017-3 Rehaboilitation of Rental Housing | C48: 155000 | E48: 101322 | G48: 256322 | I48: 44415 | K48: 0 | M48: 44415 | O48: Section 3 (3) | P48: 5 | S48: 6 | V48: 3 | W48: 5
A49: 2017-4 Rehabilitation Assistance to Home owners | C49: 125000 | E49: 50000 | G49: 175000 | I49: 0 | K49: 0 | M49: 0 | O49: Section 3 (4) | P49: 5 | S49: 0 | V49: 12 | W49: 16
A50: 2017-5 Housing Management Services | C50: 70000 | E50: 25000 | G50: 95000 | I50: 110033 | K50: 0 | M50: 110033 | O50: Section 3 (5) | Q50: 68 | T50: 70 | V50: 6 | W50: 19
A51: 2017-6 Crime Prevention and Safety | C51: 69322 | E51: 23678 | G51: 93000 | I51: 121949 | K51: 0 | M51: 121949 | O51: Section 3 (6) | Q51: 68 | V51: 11 | W51: 18
A52: 2017-7 Operations and Maintenace of NAHASDA Units | C52: 70000 | E52: 0 | G52: 70000 | I52: 89771 | K52: 0 | M52: 89771 | O52: Section 3 (7) | P52: 35 | V52: 3 | W52: 20
A53: Planning and Administration | C53: 15000 | E53: 0 | G53: 15000 | I53: 122846 | K53: 5300 | M53: 128146
A54: Loan repayment - describe in 3 & 4 below | C54: 0 | E54: 0 | G54: 0 | I54: 0 | K54: 397552 | M54: 397552
A55: TOTAL | C55: =SUM(C46:C54) -> 745322 | E55: =SUM(E46:E54) -> 250000 | G55: 995322 | I55: =SUM(I46:I54) -> 610717 | K55: =SUM(K46:K54) -> 402852 | M55: 1013569
A56: Notes:
A57: a. Total of Column L cannot exceed the IHBG funds from Column C, Row 1 from the Sources of Funding table in Line 1 above.
A58: b. Total of Column M cannot exceed the total from Column C, Rows 2-10 from the Sources of Funding table in Line 1 above.
A59: c. Total of Column O cannot exceed total IHBG funds received in Column H, Row 1 from the Sources of Funding table in Line 1 above.
A60: d. Total of Column P cannot exceed total of Column H, Rows 2-10 of the Sources of Funding table in Line 1 above.
A61: e. Total of Column Q should equal total of Column I of the Sources of Funding table in Line 1 above.
A63: (3) Estimated Sources or Uses of Funding (NAHASDA § 102(b)(2)(C)). (Provide any additional information about the estimated sources or uses of funding, including leverage (if any). You must provide the relevant information for any planned loan repayment listed in the Uses of Funding table on the previous page. This planned loan repayment can be associated with Title VI or with private or tribal funding that is used for an eligible activity described in an IHP that has been determined to be in compliance by HUD. The text must describe which specific loan is planned to be repaid and the NAHASDA-eligible activity and program associated with this loan):
A71: a
A73: (4) APR (NAHASDA § 404(b)) (Enter any additional information about the actual sources or uses of funding, including leverage (if any). You must provide the relevant information for any actual loan repayment listed in the Uses of Funding table on the previous page. The text must describe which loan was repaid and the NAHASDA-eligible activity and program associated with this loan.):

Sheet Section 6
A2: SECTION 6: OTHER SUBMISSION ITEMS
A3: [102(b)(2)(C)(ii)], [201(b)(5)], [202(6)], [205(a)(2)], [209], 24 CFR §§ 1000.108, 1000.120, 1000.142, 1000.238, 1000.302
A5: (1) Useful Life/Affordability Period(s) (NAHASDA § 205, 24 CFR § 1000.142) (Describe your plan or system for determining the useful life/affordability period of the housing it assists with IHBG and/or Title VI funds must be provided in the IHP. A record of the current, specific useful life/affordability period for housing units assisted with IHBG and/or Title VI funds (excluding Mutual Help) must be maintained in the recipient’s files and available for review for the useful life/affordability period.):
A11: a
A13: (2) Model Housing and Over-Income Activities (NAHASDA § 202(6), 24 CFR § 1000.108) (If you wish to undertake a model housing activity or wish to serve non-low-income households during the 12-month program year, those activities may be described here, in the program description section of the 1-year plan, or as a separate submission.):
A16: a
A18: (3) Tribal and Other Indian Preference (NAHASDA § 201(b)(5), 24 CFR § 1000.120)
A19: If preference will be given to tribal members or other Indian families, the preference policy must be
A20: described. This information may be provided here or in the program description section of the 1-year plan.
A22: Does the Tribe have a preference policy?
A24: If yes, describe the policy.
A25: a
A27: (4) Anticipated Planning and Administration Expenses (NAHASDA § 102(b)(2)(C)(ii), 24 CFR § 1000.238)
A28: Do you intend to exceed your allowable spending cap for Planning and Administration?
A30: If yes, describe why the additional funds are needed for Planning and Administration. For a recipient administering funds from multiple grant beneficiaries with a mix of grant or expenditure amounts, for each beneficiary state the grant amount or expenditure amount, the cap percentage applied, and the actual dollar amount of the cap.
A33: (5) Actual Planning and Administration Expenses (NAHASDA § 102(b)(2)(C)(ii), 24 CFR § 1000.238)
A34: Did you exceed your spending cap for Planning and Administration?
A36: If yes, did you receive HUD approval to exceed the cap on Planning and Administration costs?
A38: If you did not receive approval for exceeding your spending cap on planning and administration costs, describe the reason(s) for exceeding the cap. (See Section 6, Line 5 of the Guidance for information on carry-over of unspent planning and administration expenses.)
A41: (6) Expanded Formula Area - Verification of Substantial Housing Services (24 CFR § 1000.302(3)) If your tribe has an expanded formula area (i.e., an area that was justified based on housing services provided rather than the list of areas defined in 24 CFR § 1000.302 Formula Area (1)), the tribe must demonstrate that it is continuing to provide substantial housing services to that expanded formula area. Does the tribe have an expanded formula area?
A45: If no, proceed to Section 7.
A47: If yes, list each separate geographic area that has been added to the Tribe’s formula area and the documented number of Tribal members residing there.
A48: a
A50: For each separate formula area expansion, list the budgeted amount of IHBG and other funds to be provided to all American Indian and Alaska Native (AIAN) households and to only those AIAN households with incomes 80% of median income or lower during the recipient’s 12-month program year:
A52: Total Expenditures on Affordable Housing Activities for:
C53: All AIAN Households | D53: AIAN Households with Incomes 80% or Less of Median Income
A54: IHBG Funds:
A55: Funds from Other Sources:
A57: (7) APR: If answered "Yes" in Line 6, for each separate formula area, list the actual amount of IHBG and other funds expended for all AIAN households and for only AIAN households with incomes 80% of median income or lower during the recipient's 12-month program year.
A61: Total Expenditures on Affordable Housing Activities for:
C62: All AIAN Households | D62: AIAN Households with Incomes 80% or Less of Median Income
A63: IHBG Funds:
A64: Funds from Other Sources:

Sheet Section 7
A2: SECTION 7: INDIAN HOUSING PLAN CERTIFICATION OF COMPLIANCE
A3: NAHASDA § 102(b)(2)(D)
A5: By signing the IHP, the recipient certifies its compliance with Title II of the Civil Rights Act of 1968 (25 USC Part 1301 et seq.), and ensures that the recipient has all appropriate policies and procedures in place to operate its planned programs. The recipient should not assert that it has the appropriate policies and procedures in place if these documents do not exist in its files, as this will be one of the items verified during any HUD monitoring review.
A8: (1) In accordance with applicable statutes, the recipient certifies that:
A9: It will comply with Title II of the Civil Rights Act of 1968 in carrying out this Act, to the extent that such title is applicable, and other applicable federal statutes.
A11: (2) In accordance with 24 CFR 1000.328, the recipient receiving less than $200,000 under FCAS certifies that:
A12: There are households within its jurisdiction at or below 80 percent of median income.
A14: (3) The following certifications will only apply where applicable based on program activities.
A15: a. It will maintain adequate insurance coverage for housing units that are owned and operated or assisted with grant amounts provided under NAHASDA, in compliance with such requirements as may be established by HUD;
A17: b. Policies are in effect and are available for review by HUD and the public governing the eligibility, admission, and occupancy of families for housing assisted with grant amounts provided under NAHASDA;
A19: c. Policies are in effect and are available for review by HUD and the public governing rents charged, including the methods by which such rents or homebuyer payments are determined, for housing assisted with grant amounts provided under NAHASDA; and
A21: d. Policies are in effect and are available for review by HUD and the public governing the management and maintenance of housing assisted with grant amounts provided under NAHASDA.

Sheet Section 8
A2: SECTION 8: IHP TRIBAL CERTIFICATION
A3: NAHASDA § 102(c)
A5: This certification is used when a Tribally Designated Housing Entity (TDHE) prepares the IHP or IHP amendment on behalf of a tribe.
A6: This certification must be executed by the recognized tribal government covered under the IHP.
A7: (1) The recognized tribal government of the grant beneficiary certifies that:
A8: (2) It had an opportunity to review the IHP or IHP amendment and has authorized the submission of the IHP by the TDHE; or
A9: (3) It has delegated to such TDHE the authority to submit an IHP or IHP amendment on behalf of the Tribe without prior review by the Tribe.
A10: (4) Tribe: | F10: Quileuete Tribe
A11: (5) Authorized Official’s Name and | F11: Charles Woodruff, Chairman
A12: Title:
A13: (6) Authorized Official’s Signature: | F13: On File
A14: (7) Date (MM/DD/YYYY): | F14: 2016-06-23

Sheet Section 9
A2: SECTION 9: TRIBAL WAGE RATE CERTIFICATION
A3: NAHASDA §§ 102(b)(2)(D)(vi), 104(b)
A5: By signing the IHP, you certify whether you will use tribally determined wages, Davis-Bacon wages, or HUD
A6: determined wages. Check only the applicable box below.
A7: (1) You will use tribally determined wage rates when required for IHBG-assisted construction or maintenance activities. The Tribe has appropriate laws and regulations in place in order for it to determine and distribute prevailing wages.
A8: (2) You will use Davis-Bacon or HUD determined wage rates when required for IHBG-assisted construction or maintenance activities.
A9: (3) You will use Davis-Bacon and/or HUD determined wage rates when required for IHBG-assisted construction except for the activities described below.
A11: (4) List the activities using tribally determined wage rates:
A12: a

Sheet Section 10
A2: SECTION 10: SELF-MONITORING
A3: NAHASDA § 403(b), 24 CFR §§ 1000.26, 85.37, 85.40
A5: (1) Do you have a procedure and/or policy for self-monitoring?
A9: (2) Pursuant to 24 CFR § 1000.502(b) where the recipient is a TDHE, did the TDHE provide periodic progress reports including the self-monitoring report, Annual Performance Report, and audit reports to the Tribe?
A13: (3) Did you conduct self-monitoring, including monitoring sub-recipients?
A19: (4) Self-Monitoring Results. (Describe the results of the monitoring activities, including inspections for this program year.):
A20: a

Sheet Section 11
A2: SECTION 11: INSPECTIONS
A3: NAHASDA § 403(b)
A5: (1) Inspection of Units (Use the table below to record the results of recurring inspections of assisted housing.)
D6: Results of Inspections
A7: Activity | C7: Total Number of Units (Inventory) | D7: Units in standard condition | E7: Units needing rehabilitation | F7: Units needing to be replaced | G7: Total number of units inspected
A8: (a) | C8: (b) | D8: (c) | E8: (d) | F8: (e) | G8: (f)
A9: 1 | B9: 1937 Housing Act Units:
B10: a. Rental | C10: 12 | D10: 12 | E10: 0 | F10: 0 | G10: =SUM(D10:F10) -> 12
B11: b. Homeownership | C11: 18 | D11: 15 | E11: 3 | F11: 0 | G11: =SUM(D11:F11) -> 18
B12: c. Other | C12: 0 | D12: 0 | E12: 0 | F12: 0 | G12: =SUM(D12:F12) -> 0
A13: 1937 Act Subtotal | C13: =SUM(C10:C12) -> 30 | D13: =SUM(D10:D12) -> 27 | E13: =SUM(E10:E12) -> 3 | F13: =SUM(F10:F12) -> 0 | G13: =SUM(D13:F13) -> 30
A14: 2 | B14: NAHASDA assisted units:
B15: a. Rental | C15: 14 | D15: 12 | E15: 2 | F15: 0 | G15: =SUM(D15:F15) -> 14
B16: b. Homeownership | C16: 22 | D16: 22 | E16: 0 | F16: 0 | G16: 22
B17: c. Rental Assistance | C17: 0 | D17: 0 | E17: 0 | F17: 0 | G17: 0
B18: d. Other | C18: 0 | D18: 0 | E18: 0 | F18: 0 | G18: 0
A19: NAHASDA Subtotal | C19: =SUM(C15:C18) -> 36 | D19: =SUM(D15:D18) -> 34 | E19: =SUM(E15:E18) -> 2 | F19: =SUM(F15:F18) -> 0 | G19: 36
A20: Total | C20: =C13+C19 -> 66 | D20: =D13+D19 -> 61 | E20: =E13+E19 -> 5 | F20: =F13+F19 -> 0 | G20: 66
A22: (2) Did you comply with your inspection policy:
A24: (3) If no, why not:

Sheet Section 12
A2: SECTION 12: AUDITS
A3: 24 CFR § 1000.544
A5: This section is used to indicate whether an Office of Management and Budget Circular A-133 audit is required, based on a review of your financial records.
A6: Did you expend $750,000 or more in total Federal awards during the APR reporting period?
A10: If Yes, an audit is required to be submitted to the Federal Audit Clearinghouse and your Area Office of Native American Programs.
A11: If No, an audit is not required.

Sheet Section 13
A2: SECTION 13: PUBLIC AVAILABILITY
A3: NAHASDA § 408, 24 CFR § 1000.518
A5: (1). Did you make this APR available to the citizens in your jurisdiction before it was submitted to HUD
A6: (24 CFR § 1000.518)?
A10: (2) If you are a TDHE, did you submit this APR to the Tribe(s) (24 CFR § 1000.512)?
A15: (3) If you answered “No” to question #1 and/or #2, provide an explanation as to why not and indicate when you will do so.
A18: (4) Summarize any comments received from the Tribe(s) and/or the citizens (NAHASDA § 404(d)).
A19: a

Sheet Section 14
A2: SECTION 14: JOBS SUPPORTED BY NAHASDA
A3: NAHASDA § 404(b)
A5: Use the table below to record the number of jobs supported with IHBG funds each year.
A7: Indian Housing Block Grant Assistance (IHBG)
A8: (1) Number of Permanent Jobs Supported | F8: 8
A9: (2) Number of Temporary Jobs Supported | F9: 4
A11: (3) Narrative (optional):

Sheet Section 15
A2: SECTION 15: IHP WAIVER REQUESTS
A3: NAHASDA § 101(b)(2)
A5: THIS SECTION IS ONLY REQUIRED IF THE RECIPIENT IS REQUESTING A WAIVER OF AN IHP SECTION OR A WAIVER OF THE IHP SUBMISSION DUE DATE.
A6: A waiver is valid for a period not to exceed 90 days. Fill out the form below if you are requesting a waiver of one or more sections of the IHP. NOTE: This is NOT a waiver of the IHBG program requirements but rather a request to waive some of the IHP submission items.
A8: (1) List below the sections of the IHP where you are requesting a waiver and/or a waiver of the IHP due date.
A9: (List the requested waiver sections by name and section number):
A12: (2) Describe the reasons that you are requesting this waiver (Describe completely why you are unable to complete a particular section of the IHP or could not submit the IHP by the required due date.):
A15: (3) Describe the actions you will take in order to ensure that you are able to submit a complete IHP in the future and/or submit the IHP by the required due date. (This section should completely describe the procedural, staffing or technical corrections that you will make in order to submit a complete IHP in the future and/or submit the IHP by the required due date.):
A18: (4) Recipient:
A19: (5) Authorized Official’s Name and
A20: Title:
A21: (6) Authorized Official’s Signature:
A22: (7) Date (MM/DD/YYYY):

Sheet Section 16 (hidden)
N1: (1) Modernization of 1937 Act Housing [202(1)] | O1: (1) Reduce over-crowding
A2: SECTION 16: IHP AMENDMENTS | M2: 1
A3: NAHASDA §§ 24 CFR §1000.512 | M3: 2
A5: Use this section for IHP amendments only.
M7: 3
M8: 4
A14: Eligible Activity | B14: Output Measure | C14: Output Completion
A15: (1) Modernization of 1937 Act Housing [202(1)] | B15: Units | C15: All work completed and unit passed final inspection
A16: (2) Operation of 1937 Act Housing [202(1)] | B16: Units | C16: Number of units in inventory at Program Year End (PYE)
A17: (3) Acquisition of Rental Housing [202(2)] | B17: Units | C17: When recipient takes title to the unit
A18: (4) Construction of Rental Housing [202(2)] | B18: Units | C18: All work completed and unit passed final inspection
A19: (5) Rehabilitation of Rental Housing [202(2)] | B19: Units | C19: All work completed and unit passed final inspection
A20: (6) Acquisition of Land for Rental Housing Development [202(2)] | B20: Acres | C20: When recipient takes title to the land
A21: (7) Development of Emergency Shelters [202(2)] | B21: Households | C21: Number of households served at any one time, based on capacity of the shelter
A22: (8) Conversion of Other Structures to Affordable Housing [202(2)] | B22: Units | C22: All work completed and unit passed final inspection
A23: (9) Other Rental Housing Development [202(2)] | B23: Units | C23: All work completed and unit passed final inspection
A24: (10) Acquisition of Land for Homebuyer Unit Development [202(2)] | B24: Acres | C24: When recipient takes title to the land
A25: (11) New Construction of Homebuyer Units [202(2)] | B25: Units | C25: All work completed and unit passed final inspection
A26: (12) Acquisition of Homebuyer Units [202(2)] | B26: Units | C26: When recipient takes title to the unit
A27: (13) Down Payment/Closing Cost Assistance [202(2)] | B27: Units | C27: When binding commitment signed
A28: (14) Lending Subsidies for Homebuyers (Loan) [202(2)] | B28: Units | C28: When binding commitment signed
A29: (15) Other Homebuyer Assistance Activities [202(2)] | B29: Units | C29: When binding commitment signed
A30: (16) Rehabilitation Assistance to Existing Homeowners [202(2)] | B30: Units | C30: All work completed and unit passed final inspection
A31: (17) Tenant Based Rental Assistance [202(3)] | B31: Households | C31: Count each household once per year
A32: (18) Other Housing Service [202(3)] | B32: Households | C32: Count each household once per year
A33: (19) Housing Management Services [202(4)] | B33: Households | C33: Count each household once per year
A34: (20) Operation and Maintenance of NAHASDA-Assisted Units [202(4)] | B34: Units | C34: Number of units in inventory at PYE
A35: (21) Crime Prevention and Safety [202(5)] | B35: Dollars | C35: Dollars spent (report in Uses of Funding Table only)
A36: (22) Model Activities [202(6)] | B36: Dollars | C36: Dollars spent (report in Uses of Funding Table only)
A37: (23) Self-Determination Program [231-235]
A38: Acquisition | B38: Units | C38: When recipient takes title to the unit
A39: Construction | B39: Units | C39: All work completed and unit passed final inspection
A40: Rehabilitation | B40: Units | C40: All work completed and unit passed final inspection
A41: Infrastructure | B41: Dollars | C41: Dollars spent (report in Uses of Funding Table only)
A42: (24) Infrastructure to Support Housing [202(2)] | B42: Dollars | C42: Dollars spent (report in Uses of Funding Table only)
A43: (25) Reserve Accounts [202(9)] | B43: N/A | C43: N/A
A45: APR: REPORTING ON PROGRAM YEAR PROGRESS (NAHASDA § 404(b))
A46: Complete the shaded section of text below to describe your completed program tasks and actual results. Only report on activities completed during the 12-month program year. Financial data should be presented using the same basis of accounting as the Schedule of Expenditures of Federal Awards (SEFA) in the annual OMB Circular A-133 audit. For unit accomplishments, only count units when the unit was completed and occupied during the year. For households, only count the household if it received the assistance during the previous 12-month program year.
AA47: 1
A48: 1. Program Name and Unique Identifier:
A49: 2. Program Description (This should be the description of the planned program.):
A51: 3. Eligible Activity Number (Select one activity from the Eligible Activity list. For any activity involving housing units as the output measure (excluding operations and maintenance), do not combine homeownership and rental housing in one activity, so that when housing units are reported in the APR they are correctly identified as homeownership or rental.):
A52: 4. Intended Outcome Number (Select one outcome from the Outcome list. Each program can have only one outcome. If more than one outcome applies, create a separate program for each outcome.):
A53: Describe Other Intended Outcome (Only if you selected "Other" above):
A55: 5. Actual Outcome Number (In the APR identify the actual outcome from the Outcome list.):
A56: Describe Other Actual Outcome (Only if you selected "Other" above):
A58: 6. Who Will Be Assisted (Describe the types of households that will be assisted under the program. Please note: assistance made available to families whose incomes fall within 80 to 100 percent of the median should be included as a separate program within this section.):
A60: 7. Types and Level of Assistance (Describe the types and the level of assistance that will be provided to each household, as applicable.):
A62: 8. APR: Describe the accomplishments for the APR in the 12-month program year.
A64: 9: Planned and Actual Outputs for 12-Month Program Year
A66: Eligible Activity | B66: Output Measure | C66: Output Completion
A67: (1) Modernization of 1937 Act Housing [202(1)] | B67: Units | C67: All work completed and unit passed final inspection
A68: (2) Operation of 1937 Act Housing [202(1)] | B68: Units | C68: Number of units in inventory at Program Year End (PYE)
A69: (3) Acquisition of Rental Housing [202(2)] | B69: Units | C69: When recipient takes title to the unit
A70: (4) Construction of Rental Housing [202(2)] | B70: Units | C70: All work completed and unit passed final inspection
A71: (5) Rehabilitation of Rental Housing [202(2)] | B71: Units | C71: All work completed and unit passed final inspection
A72: (6) Acquisition of Land for Rental Housing Development [202(2)] | B72: Acres | C72: When recipient takes title to the land
A73: (7) Development of Emergency Shelters [202(2)] | B73: Households | C73: Number of households served at any one time, based on capacity of the shelter
A74: (8) Conversion of Other Structures to Affordable Housing [202(2)] | B74: Units | C74: All work completed and unit passed final inspection
A75: (9) Other Rental Housing Development [202(2)] | B75: Units | C75: All work completed and unit passed final inspection
A76: (10) Acquisition of Land for Homebuyer Unit Development [202(2)] | B76: Acres | C76: When recipient takes title to the land
A77: (11) New Construction of Homebuyer Units [202(2)] | B77: Units | C77: All work completed and unit passed final inspection
A78: (12) Acquisition of Homebuyer Units [202(2)] | B78: Units | C78: When recipient takes title to the unit
A79: (13) Down Payment/Closing Cost Assistance [202(2)] | B79: Units | C79: When binding commitment signed
A80: (14) Lending Subsidies for Homebuyers (Loan) [202(2)] | B80: Units | C80: When binding commitment signed
A81: (15) Other Homebuyer Assistance Activities [202(2)] | B81: Units | C81: When binding commitment signed
A82: (16) Rehabilitation Assistance to Existing Homeowners [202(2)] | B82: Units | C82: All work completed and unit passed final inspection
A83: (17) Tenant Based Rental Assistance [202(3)] | B83: Households | C83: Count each household once per year
A84: (18) Other Housing Service [202(3)] | B84: Households | C84: Count each household once per year
A85: (19) Housing Management Services [202(4)] | B85: Households | C85: Count each household once per year
A86: (20) Operation and Maintenance of NAHASDA-Assisted Units [202(4)] | B86: Units | C86: Number of units in inventory at PYE
A87: (21) Crime Prevention and Safety [202(5)] | B87: Dollars | C87: Dollars spent (report in Uses of Funding Table only)
A88: (22) Model Activities [202(6)] | B88: Dollars | C88: Dollars spent (report in Uses of Funding Table only)
A89: (23) Self-Determination Program [231-235]
A90: Acquisition | B90: Units | C90: When recipient takes title to the unit
A91: Construction | B91: Units | C91: All work completed and unit passed final inspection
A92: Rehabilitation | B92: Units | C92: All work completed and unit passed final inspection
A93: Infrastructure | B93: Dollars | C93: Dollars spent (report in Uses of Funding Table only)
A94: (24) Infrastructure to Support Housing [202(2)] | B94: Dollars | C94: Dollars spent (report in Uses of Funding Table only)
A96: Planned Number of Units to be Completed in Year Under this Program | B96: Planned Number of Households To Be Served in Year Under this Program | C96: Planned Number of Acres To Be Purchased in Year Under this Program
A98: APR: Actual Number of Units Completed in Program Year | B98: APR: Actual Number of Households Served in Program Year | C98: APR: Actual Number of Acres Purchased in Program Year
A100: 1.10: APR: If the program is behind schedule, explain why. (24 CFR § 1000.512(b)(2))

Sheet Section 16 (1)
A2: SECTION 16: IHP AMENDMENTS
A3: 24 CFR §1000.512
A5: Use this section for IHP amendments only.
A14: Eligible Activity | B14: Output Measure | C14: Output Completion
A15: (1) Modernization of 1937 Act Housing [202(1)] | B15: Units | C15: All work completed and unit passed final inspection
A16: (2) Operation of 1937 Act Housing [202(1)] | B16: Units | C16: Number of units in inventory at Program Year End (PYE)
A17: (3) Acquisition of Rental Housing [202(2)] | B17: Units | C17: When recipient takes title to the unit
A18: (4) Construction of Rental Housing [202(2)] | B18: Units | C18: All work completed and unit passed final inspection
A19: (5) Rehabilitation of Rental Housing [202(2)] | B19: Units | C19: All work completed and unit passed final inspection
A20: (6) Acquisition of Land for Rental Housing Development [202(2)] | B20: Acres | C20: When recipient takes title to the land
A21: (7) Development of Emergency Shelters [202(2)] | B21: Households | C21: Number of households served at any one time, based on capacity of the shelter
A22: (8) Conversion of Other Structures to Affordable Housing [202(2)] | B22: Units | C22: All work completed and unit passed final inspection
A23: (9) Other Rental Housing Development [202(2)] | B23: Units | C23: All work completed and unit passed final inspection
A24: (10) Acquisition of Land for Homebuyer Unit Development [202(2)] | B24: Acres | C24: When recipient takes title to the land
A25: (11) New Construction of Homebuyer Units [202(2)] | B25: Units | C25: All work completed and unit passed final inspection
A26: (12) Acquisition of Homebuyer Units [202(2)] | B26: Units | C26: When recipient takes title to the unit
A27: (13) Down Payment/Closing Cost Assistance [202(2)] | B27: Units | C27: When binding commitment signed
A28: (14) Lending Subsidies for Homebuyers (Loan) [202(2)] | B28: Units | C28: When binding commitment signed
A29: (15) Other Homebuyer Assistance Activities [202(2)] | B29: Units | C29: When binding commitment signed
A30: (16) Rehabilitation Assistance to Existing Homeowners [202(2)] | B30: Units | C30: All work completed and unit passed final inspection
A31: (17) Tenant Based Rental Assistance [202(3)] | B31: Households | C31: Count each household once per year
A32: (18) Other Housing Service [202(3)] | B32: Households | C32: Count each household once per year
A33: (19) Housing Management Services [202(4)] | B33: Households | C33: Count each household once per year
A34: (20) Operation and Maintenance of NAHASDA-Assisted Units [202(4)] | B34: Units | C34: Number of units in inventory at PYE
A35: (21) Crime Prevention and Safety [202(5)] | B35: Dollars | C35: Dollars spent (report in Uses of Funding Table only)
A36: (22) Model Activities [202(6)] | B36: Dollars | C36: Dollars spent (report in Uses of Funding Table only)
A37: (23) Self-Determination Program [231-235]
A38: Acquisition | B38: Units | C38: When recipient takes title to the unit
A39: Construction | B39: Units | C39: All work completed and unit passed final inspection
A40: Rehabilitation | B40: Units | C40: All work completed and unit passed final inspection
A41: Infrastructure | B41: Dollars | C41: Dollars spent (report in Uses of Funding Table only)
A42: (24) Infrastructure to Support Housing [202(2)] | B42: Dollars | C42: Dollars spent (report in Uses of Funding Table only)
A43: (25) Reserve Accounts [202(9)] | B43: N/A | C43: N/A
A45: APR: REPORTING ON PROGRAM YEAR PROGRESS (NAHASDA § 404(b))
A46: Complete the shaded section of text below to describe your completed program tasks and actual results. Only report on activities completed during the 12-month program year. Financial data should be presented using the same basis of accounting as the Schedule of Expenditures of Federal Awards (SEFA) in the annual audit. For unit accomplishments, only count units when the unit was completed and occupied during the year. For households, only count the household if it received the assistance during the previous 12-month program year.
A48: 1. Program Name and Unique Identifier: | AA48: 1
A49: 2. Program Description (This should be the description of the planned program.):
A51: 3. Eligible Activity Number (Select one activity from the Eligible Activity list. For any activity involving housing units as the output measure (excluding operations and maintenance), do not combine homeownership and rental housing in one activity, so that when housing units are reported in the APR they are correctly identified as homeownership or rental.):
A52: 4. Intended Outcome Number (Select one outcome from the Outcome list. Each program can have only one outcome. If more than one outcome applies, create a separate program for each outcome.):
A53: Describe Other Intended Outcome (Only if you selected "Other" above.):
A55: 5. Actual Outcome Number (In the APR identify the actual outcome from the Outcome list.):
A56: Describe Other Actual Outcome (Only if you selected "Other" in above):
A58: 6. Who Will Be Assisted (Describe the types of households that will be assisted under the program. Please note: assistance made available to families whose incomes fall within 80 to 100 percent of the median must be included as a separate program within this section.):
A60: 7. Types and Level of Assistance (Describe the types and the level of assistance that will be provided to each household, as applicable.):
A62: 8. APR: Describe the accomplishments for the APR in the 12-month program year.
A64: 9. Planned and Actual Outputs for 12-Month Program Year
A66: Eligible Activity | B66: Output Measure | C66: Output Completion
A67: (1) Modernization of 1937 Act Housing [202(1)] | B67: Units | C67: All work completed and unit passed final inspection
A68: (2) Operation of 1937 Act Housing [202(1)] | B68: Units | C68: Number of units in inventory at Program Year End (PYE)
A69: (3) Acquisition of Rental Housing [202(2)] | B69: Units | C69: When recipient takes title to the unit
A70: (4) Construction of Rental Housing [202(2)] | B70: Units | C70: All work completed and unit passed final inspection
A71: (5) Rehabilitation of Rental Housing [202(2)] | B71: Units | C71: All work completed and unit passed final inspection
A72: (6) Acquisition of Land for Rental Housing Development [202(2)] | B72: Acres | C72: When recipient takes title to the land
A73: (7) Development of Emergency Shelters [202(2)] | B73: Households | C73: Number of households served at any one time, based on capacity of the shelter
A74: (8) Conversion of Other Structures to Affordable Housing [202(2)] | B74: Units | C74: All work completed and unit passed final inspection
A75: (9) Other Rental Housing Development [202(2)] | B75: Units | C75: All work completed and unit passed final inspection
A76: (10) Acquisition of Land for Homebuyer Unit Development [202(2)] | B76: Acres | C76: When recipient takes title to the land
A77: (11) New Construction of Homebuyer Units [202(2)] | B77: Units | C77: All work completed and unit passed final inspection
A78: (12) Acquisition of Homebuyer Units [202(2)] | B78: Units | C78: When recipient takes title to the unit
A79: (13) Down Payment/Closing Cost Assistance [202(2)] | B79: Units | C79: When binding commitment signed
A80: (14) Lending Subsidies for Homebuyers (Loan) [202(2)] | B80: Units | C80: When binding commitment signed
A81: (15) Other Homebuyer Assistance Activities [202(2)] | B81: Units | C81: When binding commitment signed
A82: (16) Rehabilitation Assistance to Existing Homeowners [202(2)] | B82: Units | C82: All work completed and unit passed final inspection
A83: (17) Tenant Based Rental Assistance [202(3)] | B83: Households | C83: Count each household once per year
A84: (18) Other Housing Service [202(3)] | B84: Households | C84: Count each household once per year
A85: (19) Housing Management Services [202(4)] | B85: Households | C85: Count each household once per year
A86: (20) Operation and Maintenance of NAHASDA-Assisted Units [202(4)] | B86: Units | C86: Number of units in inventory at PYE
A87: (21) Crime Prevention and Safety [202(5)] | B87: Dollars | C87: Dollars spent (report in Uses of Funding Table only)
A88: (22) Model Activities [202(6)] | B88: Dollars | C88: Dollars spent (report in Uses of Funding Table only)
A89: (23) Self-Determination Program [231-235]
A90: Acquisition | B90: Units | C90: When recipient takes title to the unit
A91: Construction | B91: Units | C91: All work completed and unit passed final inspection
A92: Rehabilitation | B92: Units | C92: All work completed and unit passed final inspection
A93: Infrastructure | B93: Dollars | C93: Dollars spent (report in Uses of Funding Table only)
A94: (24) Infrastructure to Support Housing [202(2)] | B94: Dollars | C94: Dollars spent (report in Uses of Funding Table only)
A95: (25) Reserve Accounts [202(9)] | B95: N/A | C95: N/A
A96: Planned Number of Units to be Completed in Year Under this Program | B96: Planned Number of Households To Be Served in Year Under this Program | C96: Planned Number of Acres To Be Purchased in Year Under this Program
A98: APR: Actual Number of Units Completed in Program Year | B98: APR: Actual Number of Households Served in Program Year | C98: APR: Actual Number of Acres Purchased in Program Year
A100: 10. APR: If the program is behind schedule, explain why. (24 CFR § 1000.512(b)(2))

Sheet Section 16 - Funds - Signature
A16: (11) Amended Sources of Funding (NAHASDA § 102(b)(2)(C)(i) and 404(b)) (Complete the non-shaded portions of the chart below to describe your estimated or anticipated sources of funding for the 12-month program year. APR Actual Sources of Funding -- Please complete the shaded portions of the chart below to describe your actual funds received. Only report on funds actually received and under a grant agreement or other binding commitment during the 12-month program year.)
D18: IHP | I18: APR
A19: SOURCE | D19: (A) | E19: (B) | F19: (C) | G19: (D) | H19: (E) | I19: (F) | J19: (G) | K19: (H) | L19: (I) | M19: (J) | N19: (K)
D20: Estimated amount on hand at beginning of program year | E20: Estimated amount to be received during 12-month program year | F20: Estimated total sources of funds (A+B) | G20: Estimated funds to be expended during 12-month program year | H20: Estimated unexpended funds remaining at end of program year (C-D) | I20: Actual amount on hand at beginning of program year | J20: Actual amount received during 12-month program year | K20: Actual total sources of funding (F+G) | L20: Actual funds expended during 12-month program year | M20: Actual unexpended funds remaining at end of 12-month program year (H - I) | N20: Actual unexpended funds obligated but not expended at end of 12-month program year
A21: 1. IHBG Funds | F21: =SUM(D21:E21) -> 0 | H21: =(F21-G21) -> 0 | K21: =SUM(I21:J21) -> 0 | M21: =SUM(K21-L21) -> 0
A22: 2. IHBG Program Income | F22: 0 | H22: 0 | K22: 0 | M22: 0
A23: 3. Title VI | F23: 0 | H23: 0 | K23: 0 | M23: 0
A24: 4. Title VI Program Income | F24: 0 | H24: 0 | K24: 0 | M24: 0
A25: 5. 1937 Act Operating Reserves | F25: 0 | H25: 0 | K25: 0 | M25: 0
A26: 6. Carry Over 1937 Act Funds | F26: 0 | H26: 0 | K26: 0 | M26: 0
A27: LEVERAGED FUNDS
A28: 7. ICDBG Funds | F28: =SUM(D28:E28) -> 0 | H28: =(F28-G28) -> 0 | K28: =SUM(I28:J28) -> 0 | M28: =SUM(K28-L28) -> 0
A29: 8. Other Federal Funds | F29: =SUM(D29:E29) -> 0 | H29: =(F29-G29) -> 0 | K29: =SUM(I29:J29) -> 0 | M29: =SUM(K29-L29) -> 0
A30: 9. LIHTC | F30: =SUM(D30:E30) -> 0 | H30: =(F30-G30) -> 0 | K30: =SUM(I30:J30) -> 0 | M30: =SUM(K30-L30) -> 0
A31: 10. Non-Federal Funds | F31: =SUM(D31:E31) -> 0 | H31: =(F31-G31) -> 0 | K31: =SUM(I31:J31) -> 0 | M31: =SUM(K31-L31) -> 0
A32: TOTAL | D32: =SUM(D21:D31) -> 0 | E32: =SUM(E21:E31) -> 0 | F32: =SUM(F21:F31) -> 0 | G32: =SUM(G21:G31) -> 0 | H32: 0 | I32: 0 | J32: 0 | K32: 0 | L32: 0 | M32: 0 | N32: 0
A33: TOTAL Columns C & H, 2 through 10 | F33: =SUM(F22:F31) -> 0 | K33: =SUM(K22:K31) -> 0
A34: Notes:
A35: a. For the IHP, fill in columns A, B, C, D, and E (non-shaded columns). For the APR, fill in columns F, G, H, I, J, and K (shaded columns).
A36: b. Total of Column D should match the total of Column N from the Uses of Funding table below.
A37: c. Total of Column I should match the Total of Column Q from the Uses of Funding table below.
A41: (12) Amended Uses of Funding (NAHASDA § 102(b)(2)(C)(ii)) (Note that the budget should not exceed the total funds on hand and insert as many rows as needed to include all the programs identified in Section 3. Actual expenditures in the APR section are for the 12-month program year.)
C43: IHP | I43: APR
C44: (L) | E44: (M) | G44: (N) | I44: (O) | K44: (P) | M44: (Q)
A45: PROGRAM NAME | C45: Prior and current year IHBG (only) funds to be expended in 12-month program year | E45: Total all other funds to be expended in 12-month program year | G45: Total funds to be expended in 12-month program year (L+M) | I45: Total IHBG (only) funds expended in 12-month program year | K45: Total all other funds expended in 12-month program year | M45: Total funds expended in 12-month program year (O+P)
G46: =SUM(C46:E46) -> 0 | M46: =SUM(I46:K46) -> 0 | O46: Section 16 (1)
A47: Planning and Administration | G47: 0 | M47: 0
A48: Loan repayment | G48: 0 | M48: 0
A49: TOTAL | C49: =SUM(C46:C48) -> 0 | E49: =SUM(E46:E48) -> 0 | G49: 0 | I49: =SUM(I46:I48) -> 0 | K49: =SUM(K46:K48) -> 0 | M49: 0
A50: Notes:
A51: a. Total of Column L cannot exceed the IHBG funds from Column C, Row 1 from the Estimated Sources of Funding table in Line 2 above.
A52: b. Total of Column M cannot exceed the total from Column C, Rows 2-10 from the Estimated Sources of Funding table in Line 2 above.
A53: c. Total of Column O cannot exceed total IHBG funds received in Column H, Row 1 from the Estimated Sources of Funding table in Line 2 above.
A54: d. Total of Column P cannot exceed total of Column H, Rows 2-10 of the Estimated Sources of Funding table in Line 2 above.
A55: e. Total of Column Q should equal total of Column I of the Estimated Sources of Funding table in Line 2 above.
A58: (13) Estimated Sources or Uses of Funding (NAHASDA § 102(b)(2)(C)). (Provide any additional information about the estimated sources or uses of funding, including leverage (if any). You must provide the relevant information for any planned loan repayment listed in the Uses of Funding table on the previous page. This planned loan repayment can be associated with Title VI or with private or tribal funding that is used for an eligible activity described in an IHP that has been determined to be in compliance by HUD. The text must describe which specific loan is planned to be repaid and the NAHASDA-eligible activity and program associated with this loan):
A68: (14) APR (NAHASDA § 404(b)) (Enter any additional information about the actual sources or uses of funding, including leverage (if any). You must provide the relevant information for any actual loan repayment listed in the Uses of Funding table on the previous page. The text must describe which loan was repaid and the NAHASDA-eligible activity and program associated with this loan.):
A76: (15) Recipient:
A77: (16) Authorized Official’s Name and Title:
A78: (17) Authorized Official’s Signature: | D78: I certify that all other sections of the IHP approved on
D79: are accurate and reflect the activities planned.
A81: (18) Date (MM/DD/YYYY):

Sheet Macros (hidden)
B2: Content must be enabled to use this automated document
B4: To enable content:
B5: 1. Click the "Options" button directly above.
B9: 2. Select "Enable this content" and click "OK".
